{"text_format":"1","workbook":"xlsx","n_sheets":11,"sheets":["Таблиця 1","Таб 1","Таб 1.1","Таб 2-3","Таб 4-6","Таб 7-10","Додаток","Титульний","Помилки","Довідки","Dov"],"not_rendered":{"charts":0,"images":0,"macros":1,"external_links":4,"defined_names":66,"comments":0,"pivot_tables":0},"unopened":[{"sheet":"Dov","index":10,"reason":"not_a_worksheet"}],"bounds":{"document_bytes":16777216,"sheet_cells":100000,"rows_first":2000,"rows_last":500,"rows_between":2000,"halvings":0,"cell_chars":16384,"cell_head_chars":4096},"cells_cut":0,"cells_raw":0,"read":"whole","date_system":"1900"}

{"sheet":"Таблиця 1","index":0,"n_rows":41,"n_cols":24,"rows_kept":41,"cut":false,"hidden":false,"merged":[[30,1,30,2],[35,1,35,2],[31,1,31,2],[2,8,2,9],[2,6,2,7],[4,0,4,2],[2,3,3,3],[2,4,2,5],[33,1,33,2],[28,0,40,0],[34,1,34,2],[28,1,28,2],[16,0,16,2],[32,1,32,2],[17,1,17,2],[17,0,26,0],[40,1,40,2],[36,1,36,2],[37,1,37,2],[38,1,38,2],[39,1,39,2],[1,0,1,9],[7,1,10,1],[11,1,11,2],[6,0,15,0],[6,1,6,2],[12,1,15,1],[2,0,3,2],[18,1,21,1],[22,1,22,2],[23,1,26,1],[5,0,5,2],[27,0,27,2]]}
[null,null,null,null,null,null,2015,"року",null,null,null,"D:\\stat\\",null,null,null,null,null,null,null,"Прокуратура Чернігівської області",null,null,null,"3 місяці"]
["Таблиця 1. Кримінальні провадження, у яких закінчено досудове розслідування (без повторних)",null,null,null,null,null,null,null,null,null,null,null,null,null,null,null,null,null,null,1,null,null,null,"6 місяців"]
[null,null,null,"рядок","Направлено до суду кримінальних проваджень з обвинувальним актом",null,"Направлено клопотань до суду для звільнення від кримінальної відповідальності ",null,"Закрито кримінальних проваджень",null,null,null,null,null,null,null,null,null,null,1,null,null,null,"9 місяців"]
[null,null,null,null,"усього","стосовно якої кількості осіб","усього","стосовно якої кількості осіб","усього","у т.ч. за  п.п. 1-3 ч. 1 ст.284 КПК",null,null,null,null,null,null,null,null,null,null,null,null,null,"12 місяців"]
["а",null,null,"б",1,2,3,4,5,6,null,null,null,null,null,null,null,null,null,null,null,null,null,3]
["Кримінальні правопорушення, вчинені службовими особами, які займають особливо відповідальне становище відповідно до ч.1 ст. 9 Закону України «Про державну службу» та посади яких відповідно до цього Закону віднесено до 1-2 категорії (крім працівників правоохоронних органів)",null,null,1,null,null,null,null,null,null,null,null,null,null,null,null,null,null,null,null,null,null,null,1]
["з них:","У сфері службової діяльності",null,2,null,null,null,null,null,null,null,null,null,null,null,null,null,null,null,null,null,null,null,1]
[null,"у т.ч.:","ловживання владою або службовим становищем (ст. 364)",3]
[null,null,"службова недбалість (ст. 367)",4]
[null,null,"злочини щодо хабарництва (ст.ст. 368-370)",5]
[null,null,"нші кримінальні правопорушення, вчинені у сфері службової діяльності",6]
[null,"Кримінальні правопорушення, не пов’язані із службовою діяльністю",null,7]
[null,"у т.ч.:","злочини проти життя та здоров’я особи\n(розділ ІІ КК України)",8]
[null,null,"злочини проти волі, честі та гідності особи\n(розділ ІІІ КК України)",9]
[null,null,"злочини проти безпеки руху та експлуатації транспорту (ст.ст. 276-292)",10]
[null,null,"інші кримінальні правопорушення, не пов’язані із службовою діяльністю",11]
["Кримінальні правопорушення, вчинені особами посади яких згідно зі ст. 25 Закону України «Про державну службу» віднесено до 3 категорії посад (крім працівників правоохоронних органів та суддів)",null,null,12,2,2]
["з них:"," У сфері службової діяльності",null,13,2,2]
[null,"у т.ч.:","зловживання владою або службовим становищем (ст. 364)",14]
[null,null,"службова недбалість (ст. 367)",15,1,1]
[null,null,"злочини щодо хабарництва (ст. ст. 368-370)",16,1,1]
[null,null,"інші кримінальні правопорушення, вчинені у сфері службової діяльності",17]
[null,"Кримінальні правопорушення, не пов’язані із службовою діяльністю",null,18]
[null,"у т.ч.:","злочини проти життя та здоров’я особи\n(розділ ІІ КК України)",19]
[null,null,"злочини проти волі, честі та гідності особи\n(розділ ІІІ КК України)",20]
[null,null,"злочини проти безпеки руху та експлуатації транспорту (ст.ст. 276-292)",21]
[null,null,"інші кримінальні правопорушення, не пов’язані із службовою діяльністю",22]
["Кримінальні правопорушення, вчинені працівниками правоохоронних органів",null,null,23,17,20,null,null,154,154]
["з них:","органів внутрішніх справ",null,24,11,14,null,null,141,141]
[null,"у т.ч.:","Національної  гвардії",25]
[null,"органів прокуратури",null,26,null,null,null,null,2,2]
[null,"Служби безпеки України",null,27,null,null,null,null,1,1]
[null,"Державної податкової служби",null,28,null,null,null,null,4,4]
[null,"митної служби",null,29]
[null,"працівниками пенітенціарної системи",null,30,3,3,null,null,5,5]
[null,"працівниками органів Держфінінспекції",null,31,null,null,null,null,1,1]
[null,"працівниками Держрибохорони",null,32,1,1]
[null,"працівниками державної лісової охорони",null,33]
[null,"співробітниками Військової служби правопорядку у ЗСУ",null,34]
[null,"прикордонниками",null,35]
[null,"працівниками інших органів, що здійснюють правозастосовні або правоохоронні функції",null,36,2,2]

{"sheet":"Таб 1","index":1,"n_rows":30,"n_cols":10,"rows_kept":30,"cut":false,"hidden":false,"merged":[[26,1,26,2],[23,0,23,2],[22,0,22,2],[24,1,24,2],[25,1,25,2],[29,0,29,2],[0,0,0,2],[12,0,12,2],[24,0,27,0],[27,1,27,2],[13,1,13,2],[18,1,21,1],[2,1,6,1],[1,0,11,0],[1,1,1,2],[17,1,17,2],[8,1,11,1],[7,1,7,2],[13,0,21,0],[14,1,16,1],[28,0,28,2]]}
["а",null,null,"б",1,2,3,4,5,6]
["з них:","У сфері службової діяльності ",null,37,7,9,null,null,138,138]
[null,"у т.ч.:","зловживання владою або службовим становищем (ст. 364)",38,1,1,null,null,6,6]
[null,null,"перевищення влади або службових повноважень (ст. 365)",39,null,null,null,null,92,92]
[null,null,"службова недбалість (ст. 367)",40,null,null,null,null,9,9]
[null,null,"злочини щодо хабарництва (ст.ст. 368-370)",41,5,7,null,null,11,11]
[null,null,"інші кримінальні правопорушення, вчинені у сфері службової діяльності",42,1,1,null,null,20,20]
[null,"Кримінальні правопорушення, не пов’язані із службовою діяльністю",null,43,10,11,null,null,16,16]
[null,"у т.ч.:","злочини проти життя та здоров’я особи (розділ ІІ КК України)",44,4,4,null,null,10,10]
[null,null,"злочини проти волі, честі та гідності особи (розділ ІІІ КК України)",45]
[null,null,"злочини проти безпеки руху та експлуатації транспорту (ст.ст. 276-292)",46,null,null,null,null,1,1]
[null,null,"інші кримінальні правопорушення, не пов’язані із службовою діяльністю",47,6,7,null,null,5,5]
["Кримінальні правопорушення, вчинені суддями",null,null,48]
["з них:","У сфері здійснення правосуддя",null,49]
[null,"у т.ч.:","постановлення завідомо неправосудного вироку, рішення або ухвали (ст.375)",50]
[null,null,"злочини щодо хабарництва (ст.ст. 368-370)",51]
[null,null,"інші кримінальні правопорушення, вчинені у сфері службової діяльності щодо здійснення правосуддя",52]
[null,"Не пов’язані із службовою діяльністю щодо здійснення правосуддя",null,53]
[null,"у т.ч.:","злочини проти життя та здоров’я особи (розділ ІІ КК України)",54]
[null,null,"злочини проти волі, честі та гідності особи (розділ ІІІ КК України)",55]
[null,null,"злочини проти безпеки руху та експлуатації транспорту (ст.ст. 276-292)",56]
[null,null,"інші кримінальні правопорушення, не пов’язані із службовою діяльністю",57]
["Інші кримінальні правопорушення",null,null,58,4,4]
["УСЬОГО",null,null,59,23,26,null,null,154,154]
["з них:","провадження про правопорушення, вчинені ОГ та ЗО",null,60,null,null,"x","x",null,"x"]
[null,"провадження про корупційні правопорушення",null,61,10,12,null,null,null,"x"]
[null,"провадження про правопорушення, вчинені у сфері земельних правовідносин",null,62,1,1]
[null,"провадження  про правопорушення, вчинені у бюджетній системі",null,63,3,3]
["Клопотання про застосування примусових заходів медичного характеру (не входить у рядок 59)",null,null,64,null,null,"x","x","x","x"]
["Контрольний рядок",null,null,65,{"$f":"SUM('Таблиця 1'!E6:E41)+SUM('Таб 1'!E2:E29)","v":115},{"$f":"SUM('Таблиця 1'!F6:F41)+SUM('Таб 1'!F2:F29)","v":132},{"$f":"SUM('Таблиця 1'!G6:G41)+SUM('Таб 1'!G2:G24)+G26+G27+G28","v":0},{"$f":"SUM('Таблиця 1'!H6:H41)+SUM('Таб 1'!H2:H24)+H26+H27+H28","v":0},{"$f":"SUM('Таблиця 1'!I6:I41)+SUM('Таб 1'!I2:I28)","v":770},{"$f":"SUM('Таблиця 1'!J6:J41)+SUM('Таб 1'!J2:J24)+J27+J28","v":770}]

{"sheet":"Таб 1.1","index":2,"n_rows":33,"n_cols":12,"rows_kept":33,"cut":false,"hidden":false,"merged":[[11,0,11,2],[4,0,4,2],[5,0,5,2],[6,0,10,0],[6,1,6,2],[8,1,8,2],[9,1,9,2],[10,1,10,2],[0,0,0,11],[1,0,1,11],[2,0,3,2],[2,3,3,3],[2,4,3,4],[2,5,2,10],[12,0,16,0],[12,1,12,2],[14,1,14,2],[15,1,15,2],[16,1,16,2],[17,0,17,2],[18,0,22,0],[18,1,18,2],[20,1,20,2],[21,1,21,2],[22,1,22,2],[29,0,29,2],[30,0,30,2],[31,0,31,2],[32,0,32,2],[23,0,23,2],[24,0,28,0],[24,1,24,2],[26,1,26,2],[27,1,27,2],[28,1,28,2]]}
["Додаток 1\nдо звітності за формою № 1-СЛ \"Про роботу органів досудового розслідування\",\n"]
["Таблиця 1.1. Кримінальні провадження про злочини, вчинені працівниками правоохоронних органів щодо застосування катувань та іншого жорстокого поводження (без повторних)"]
[null,null,null,"рядок","Про катування та інше жорстоке поводження з особами","з них:",null,null,null,null,null,"у т.ч."]
[null,null,null,null,null,"ст. 127 КК України","ст. 364 КК України","ст. 365 КК України","ст. 367 КК України","ст. 373 КК України","за іншими статтями","зі смертельними наслідками"]
["a",null,null,"б",1,2,3,4,5,6,7,8]
["Розслідувалось кримінальних проваджень",null,null,1,17,null,null,17]
["у т.ч. стосовно працівників:","МВС",null,2,17,null,null,17]
[null,"з них:","Національної гвардії",3]
[null,"ДФС",null,4]
[null,"СБУ",null,5]
[null,"ДПтС",null,6]
["З них: розпочатих у поточному році",null,null,7,14,null,null,14]
["у т.ч. стосовно працівників:","МВС",null,8,14,null,null,14]
[null,"з них:","Національної гвардії",9]
[null,"ДФС",null,10]
[null,"СБУ",null,11]
[null,"ДПтС",null,12]
["Направлено до суду кримінальних проваджень з обвинувальним актом",null,null,13]
["у т.ч. стосовно працівників:","МВС",null,14]
[null,"з них:","Національної гвардії",15]
[null,"ДФС",null,16]
[null,"СБУ",null,17]
[null,"ДПтС",null,18]
["Кількість осіб, стосовно яких кримінальні провадження направлені до суду з обвинувальним актом",null,null,19]
["у т.ч. стосовно працівників:","МВС",null,20]
[null,"з них:","Національної гвардії",21]
[null,"ДФС",null,22]
[null,"СБУ",null,23]
[null,"ДПтС",null,24]
["Направлено до суду клопотань для звільнення підозрюваного від кримінальної відповідальності",null,null,25]
["Закрито кримінальних проваджень",null,null,26,16,null,null,16]
["Направлено за підслідністю",null,null,27]
["Контрольний рядок",null,null,28,{"$f":"SUM(E6:E32)","v":78},{"$f":"SUM(F6:F32)","v":0},0,78,0,0,0,0]

{"sheet":"Таб 2-3","index":3,"n_rows":41,"n_cols":7,"rows_kept":41,"cut":false,"hidden":false,"merged":[[5,0,6,0],[10,2,10,4],[13,2,13,4],[12,3,12,4],[27,0,27,4],[25,0,26,3],[17,0,17,4],[18,0,18,4],[23,0,23,4],[24,1,24,4],[37,0,39,1],[40,0,40,4],[39,2,39,4],[38,2,38,4],[37,2,37,4],[36,1,36,4],[19,0,19,4],[20,0,22,0],[22,1,22,4],[20,1,20,4],[21,1,21,4],[30,0,30,4],[31,0,31,4],[35,0,35,4],[34,0,34,4],[33,0,33,4],[28,0,29,1],[29,2,29,4],[28,2,28,4],[1,0,1,4],[9,0,16,0],[16,2,16,4],[7,0,7,4],[14,2,14,4],[11,3,11,4],[8,1,8,4],[11,2,12,2],[2,0,2,4],[3,0,3,4],[4,0,4,4],[5,1,5,4],[15,1,15,4],[10,1,14,1],[9,1,9,4],[6,1,6,4]]}
["Таблиця 2. Результати розслідування кримінальних правопорушень "]
[null,null,null,null,null,"рядок"]
["а",null,null,null,null,"б",1]
["Залишок незакінчених кримінальних проваджень на початок звітного періоду",null,null,null,null,1,38]
["Розпочато проваджень у звітному періоді, у т.ч. по виділених в окреме провадження згідно із ст. 217 КПК",null,null,null,null,2,310]
["з них:","відновлено розслідування у раніше зупинених кримінальних провадженнях",null,null,null,3,4]
[null,"відновлено розслідування у раніше закритих кримінальних провадженнях",null,null,null,4,27]
["Усього закінчено кримінальних проваджень у звітному періоді",null,null,null,null,5,245]
["у т.ч.:","розслідування у яких розпочато у звітному періоді",null,null,null,6,185]
["з них(з рядка 5)","закінчено кримінальних проваджень у строки понад 2 місяці",null,null,null,7,3]
[null,"Направлено до суду","проваджень з обвинувальним актом",null,null,8,26]
[null,null,"у т.ч.:","з угодою про примирення",null,9]
[null,null,null,"з угодою про визнання винуватості",null,10,2]
[null,null,"клопотань про застосування примусових заходів медичного характеру",null,null,11]
[null,null,"клопотань про звільнення підозрюваного від кримінальної відповідальності",null,null,12]
[null,"закрито кримінальних проваджень із числа закінчених",null,null,null,13,219]
[null,"з них:","закрито прокурором",null,null,14]
["Направлено кримінальних проваджень за підслідністю",null,null,null,null,15,8]
["Приєднано кримінальних проваджень до інших проваджень",null,null,null,null,16,34]
["Зупинено кримінальних проваджень ",null,null,null,null,17,7]
["з них:","за п.1 ст. 280 КПК України у зв’язку з хворобою підозрюваного",null,null,null,18,4]
[null,"за п.2 ст. 280 КПК України у зв’язку з невстановленням місцезнаходження підозрюваного",null,null,null,19,3]
[null,"за п.3 ст. 280 КПК України для виконання процесуальних дій у межах міжнародного співробітництва",null,null,null,20]
["Залишок незакінчених кримінальних проваджень ",null,null,null,null,21,54]
["з них:","з повідомленням особи про підозру у вчиненні кримінального правопорушення",null,null,null,22,4]
["Із залишку незакінчених кримінальних проваджень, за якими особу повідомлено про підозру у вчиненні кримінального правопорушення, зі строком розслідування (ряд.22)",null,null,null,"понад 2 місяці, але не більше 6 місяців",23]
[null,null,null,null,"понад 6 місяців, але не більше 1 року",24]
["Число осіб, які тримаються під вартою за незакінченими кримінальними провадженнями",null,null,null,null,25,1]
["у т.ч. зі строком:",null,"понад шістдесят днів, але не більше 6 місяців",null,null,26]
[null,null,"понад  6 місяців, але не більше 1 року ",null,null,27]
["Число слідчих (станом на 01.01)",null,null,null,null,28,5]
["Контрольний рядок",null,null,null,null,29,{"$f":"SUM(G4:G31)","v":1179}]
["Таблиця 3. Строки досудового розслідування"]
[null,null,null,null,null,"рядок","Закінчено кримінальних проваджень (без повторно закінчених)"]
["а",null,null,null,null,"б",1]
["У С Ь О Г О",null,null,null,null,1,177]
["у т.ч.:","понад 2 місяці з дня повідомлення особи про підозру",null,null,null,2,3]
["Закінчено у строк \n(з рядка 2)",null,"до 3 місяців",null,null,3,2]
[null,null,"від 3 до 6 місяців",null,null,4,1]
[null,null,"від 6 місяців до 1 року",null,null,5]
["Контрольний рядок",null,null,null,null,6,{"$f":"SUM(G36:G40)","v":183}]

{"sheet":"Таб 4-6","index":4,"n_rows":37,"n_cols":11,"rows_kept":37,"cut":false,"hidden":false,"merged":[[34,0,34,2],[33,1,33,2],[27,0,27,2],[29,1,29,2],[11,0,12,2],[23,0,24,0],[23,1,23,2],[22,0,22,2],[28,1,28,2],[19,1,19,2],[18,1,18,2],[30,0,30,2],[31,1,31,2],[2,0,2,2],[3,0,10,1],[28,0,29,0],[25,0,25,2],[26,1,26,2],[16,0,16,2],[17,0,17,2],[13,0,13,2],[14,0,14,4],[11,4,12,4],[11,3,12,3],[36,0,36,2],[5,7,5,8],[0,6,0,10],[5,6,10,6],[4,7,4,8],[7,7,7,8],[9,7,9,8],[20,0,20,2],[21,1,21,2],[18,0,19,0],[35,1,35,2],[11,6,11,8],[24,1,24,2],[2,6,2,8],[3,6,3,8],[32,0,32,2]]}
["Таблиця 4. Підстави закриття кримінальних проваджень (без повторно закритих)",null,null,null,null,null,"Таблиця 6. Зупинені кримінальні провадження (без повторно зупинених)"]
[null,null,null,"рядок",null,null,null,null,null,"рядок"]
["а",null,null,"б",1,null,"а",null,null,"б",1]
["У закритих досудових провадженнях рішення прийнято на підставі:",null,"п. 1 ст. 284 КПК  (за відсутністю події кримінального правопорушення)",1,2,null,"Залишок зупинених кримінальних проваджень на кінець звітного періоду",null,null,1,3]
[null,null,"п. 2 ст. 284 КПК  (за відсутністю складу кримінального правопорушення)",2,152,null,"у т.ч.:","зупинені вперше в поточному році",null,2,3]
[null,null,"п. 3 ст. 284 КПК (за невстановленням доказів винуватості особи)",3,null,null,"з них:","Зупинено кримінальних проваджень унаслідок захворювання підозрюваного (п.1 ст. 280 КПК)",null,3,2]
[null,null,"п. 4 ст. 284 КПК (законом скасована кримінальна відповідальність)",4,null,null,null,"у т.ч.:","зупинені вперше в поточному році",4,2]
[null,null,"п. 5 ст.284 КПК (у зв’язку зі смертю підозрюваного, обвинуваченого)",5,null,null,null,"Підозрюваний ухиляється від слідства (п. 2 ст. 280 КПК)",null,5,1]
[null,null,"п. 6 ст. 284 КПК (за наявністю вироку по тому самому обвинуваченню)",6,null,null,null,"у т.ч.:","зупинені вперше в поточному році",6,1]
[null,null,"п. 7 ст. 284 КПК (у разі відмови потерпілого від обвинувачення)",7,null,null,null,"За необхідності виконання процесуальних дій у межах міжнародного співробітництва (п.3 ст. 280 КПК)",null,7]
[null,null,"п. 8 ст. 284 КПК (у разі неотримання згоди держави, яка видала особу) ",8,null,null,null,"у т.ч.:","зупинені вперше в поточному році",8]
["Направлено до суду клопотань для звільнення підозрюваного, обвинуваченого від кримінальної відповідальності у зв’язку із закінченням строків давності (Дані рядка 9 в табл.1 не включаються)",null,null,9,null,null,"Контрольний рядок",null,null,9,{"$f":"SUM(K4:K11)","v":12}]
[]
["Контрольний рядок",null,null,10,{"$f":"SUM(E4:E12)","v":154}]
["Таблиця 5. Дані про виправданих осіб та осіб, стосовно яких кримінальне провадження закрито (без повторних) за реабілітуючими підставами"]
[null,null,null,"рядок"]
["а",null,null,"б",1]
["Кількість підозрюваних осіб, стосовно яких кримінальне провадження закрито прокурором на підставі п.п. 1-3 ч.1 ст. 284 КПК України",null,null,1]
["з них:","трималися під вартою",null,2]
[null,"перебували під домашнім арештом",null,3]
["Кількість обвинувачених та підозрюваних, стосовно яких провадження закрито за реабілітуючими підставами (за кримінальними справами, розслідуваними до 20.11.2012)",null,null,4]
["з них:","трималося під вартою",null,5]
["Кількість виправданих і осіб, стосовно яких провадження закриті судом за реабілітуючими підставами ",null,null,6,2]
["з них:","трималися під вартою",null,7]
[null,"перебували під домашнім арештом",null,8]
["Кількість виправданих і осіб, стосовно яких справи закриті судом за відсутністю події або складу злочину і за недоведеністю обвинувачення (за кримінальними справами, направленими до суду до 20.11.2012)",null,null,9]
["з них:","трималося під вартою",null,10]
["Кількість осіб, стосовно яких кримінальні провадження закриті судом у зв’язку з відмовою прокурора від підтримання державного обвинувачення",null,null,11]
["з них:","трималися під вартою",null,12]
[null,"перебували під домашнім арештом",null,13]
["Кількість осіб, стосовно яких кримінальні справи закриті судом у зв’язку з відмовою прокурора від підтримання державного обвинувачення (за кримінальними справами, направленими до суду до 20.11.2012)",null,null,14]
["з них:","трималися під вартою",null,15]
["Кількість осіб, яких притягнуто до кримінальної відповідальності, але у зв’язку із зміною законодавства (декриміналізацією) провадження стосовно них закриті на стадії розслідування за відсутністю складу злочину",null,null,16]
["з них:","трималися під вартою",null,17]
["Кількість осіб, стосовно яких провадження закриті судом у зв’язку із зміною законодавства (декриміналізацією) за відсутністю складу злочину",null,null,18]
["з них:","трималися під вартою",null,19]
["Контрольний рядок",null,null,20,{"$f":"SUM(E18:E36)","v":2}]

{"sheet":"Таб 7-10","index":5,"n_rows":36,"n_cols":19,"rows_kept":36,"cut":false,"hidden":false,"merged":[[25,1,25,2],[5,1,5,6],[6,1,8,1],[7,2,7,6],[8,2,8,6],[10,1,10,6],[23,0,23,2],[24,0,24,2],[26,17,27,18],[24,10,25,14],[24,15,25,16],[22,10,23,14],[22,17,23,18],[22,15,23,16],[24,17,25,18],[26,10,27,14],[26,15,27,16],[19,11,19,16],[19,7,22,7],[13,10,19,10],[13,3,13,6],[12,3,12,6],[0,0,0,8],[18,3,22,3],[16,0,16,6],[2,0,2,6],[3,0,3,6],[4,0,4,6],[5,0,15,0],[11,1,14,2],[17,0,17,8],[18,0,22,2],[6,2,6,6],[9,1,9,6],[15,1,15,6],[18,4,18,7],[11,3,11,6],[19,6,22,6],[34,0,34,2],[35,0,35,2],[27,0,31,0],[28,1,28,2],[33,0,33,2],[30,1,30,2],[31,1,31,2],[27,1,27,2],[32,0,32,2],[30,12,30,14],[0,10,0,18],[3,10,3,12],[4,10,4,12],[5,10,6,10],[5,11,5,12],[6,11,6,12],[7,10,7,12],[11,10,11,16],[12,10,12,16],[13,11,13,16],[14,12,14,16],[16,11,16,16],[1,18,2,18],[1,17,2,17],[1,16,2,16],[8,10,9,18],[1,14,2,14],[26,0,26,2],[14,3,14,6],[28,10,28,18],[1,15,2,15],[1,13,2,13],[1,10,2,12],[19,5,22,5],[19,4,22,4],[10,10,10,16],[20,10,20,16],[15,12,15,16],[14,11,15,11],[17,12,17,16],[18,11,18,16]]}
["Таблиця 7. Затримання осіб як підозрюваних, обрання запобіжного заходу",null,null,null,null,null,null,null,null,null,"Таблиця 9. Забезпечення відшкодування збитків за закінченими кримінальними провадженнями (з обвинувальними актами, клопотаннями до суду про звільнення від кримінальної відповідальності, постановами про закриття провадження на підставі п. 5 ст. 284 КПК України)"]
[null,null,null,null,null,null,null,"рядок",null,null,null,null,null,"рядок","Установлено збитків\nна суму\n(у тис. грн.)","Відшкодовано збитків\nна суму\n(у тис. грн.)","Накладено арешт на майно на суму\n(у тис. грн.)","У т.ч. вилучено грошей та цінностей (для забезпечення відшкодування збитків) на суму (у тис. грн.)","Сума, на яку пред’явлено позови\n( у тис. грн.)"]
["а",null,null,null,null,null,null,"б",1]
["Затримано осіб у порядку, передбаченому ст.ст. 207, 208 КПК України ",null,null,null,null,null,null,1,12,null,"а",null,null,"б",1,2,3,4,5]
["Усього звільнено осіб",null,null,null,null,null,null,2,1,null,"УСЬОГО",null,null,1,4898,133,318,null,104]
["у т.ч.:","звільнено осіб безпосередньо слідчим (прокурором) без застосування запобіжного заходу у вигляді тримання під вартою",null,null,null,null,null,3,null,null,"з них:","інтересам держави та територіальних громад",null,2,4880,130,318,null,104]
[null,"з них:","за непідтвердженням підозри у вчиненні злочину",null,null,null,null,4,null,null,null,"про земельні правовідносини",null,3]
[null,null,"у зв'язку із закінченням установленого законом строку затримання",null,null,null,null,5,null,null,"Контрольний рядок",null,null,4,{"$f":"SUM(O5:O7)","v":9778},{"$f":"SUM(P5:P7)","v":263},{"$f":"SUM(Q5:Q7)","v":636},{"$f":"SUM(R5:R7)","v":0},{"$f":"SUM(S5:S7)","v":208}]
[null,null,"у зв’язку із внесенням  клопотань слідчими про обрання більш м’яких запобіжних заходів (застави, домашнього арешту тощо) ",null,null,null,null,6,null,null,"Таблиця 10. Повернення справ судом для проведення додаткового розслідування відповідно до пункту 12 Перехідних положень КПК України"]
[null,"у зв’язку з відмовою прокурора підтримати клопотання про застосування запобіжного заходу – тримання під вартою ",null,null,null,null,null,7]
[null,"через відмову суду в обранні запобіжного заходу у вигляді тримання під вартою",null,null,null,null,null,8,null,null,null,null,null,null,null,null,null,"рядок","Всього"]
[null,"з них:\nу зв’язку з обранням\nінших запобіжних\nзаходів",null,"домашній арешт",null,null,null,9,null,null,"а",null,null,null,null,null,null,"б",1]
[null,null,null,"застава",null,null,null,10,null,null,"Повернуто справ судом для проведення додаткового розслідування",null,null,null,null,null,null,1]
[null,null,null,"особиста порука",null,null,null,11,null,null,"з них: ","направлено до суду з обвинувальним актом",null,null,null,null,null,2]
[null,null,null,"особисте зобов’язання ",null,null,null,12,null,null,null,"у т. ч. ","з угодами про примирення",null,null,null,null,3]
[null,"у зв’язку із скасуванням апеляційним судом постанови суду про тримання під вартою",null,null,null,null,null,13,null,null,null,null,"з угодами про визнання винуватості",null,null,null,null,4]
["Контрольний рядок",null,null,null,null,null,null,14,{"$f":"SUM(I4:I16)","v":13},null,null,"закрито",null,null,null,null,null,5]
["Таблиця 8. Повернення судом кримінальних проваджень прокурору та результати їх розслідування ",null,null,null,null,null,null,null,null,null,null,"у т. ч. ","за п. п. 1-3 ст. 284 КПК України",null,null,null,null,6]
[null,null,null,"рядок","Повернуто проваджень, у тому числі:",null,null,null,null,null,null,"направлено до суду клопотань для звільнення від кримінальної відповідальності",null,null,null,null,null,7]
[null,null,null,null,"з обвину-вальним актом (п.3 ч. 3 ст. 314 КПК)","з клопотаннями про застосування примусових заходів медичного характеру (п.3 ч. 3 ст. 314 КПК)","з клопотаннями про звільнення особи від кримінальної відповідальності (п. 4 ст. 288 КПК)","проваджень на підставі п. 1 ч. 3 ст. 314,  п.2 ч.2 ст. 407 КПК",null,null,null,"направлено за підслідністю до інших правоохоронних органів",null,null,null,null,null,8]
[null,null,null,null,null,null,null,null,null,null,"Контрольний рядок",null,null,null,null,null,null,9,{"$f":"SUM(S13:S20)","v":0}]
[]
[null,null,null,null,null,null,null,null,null,null,"Прокурор",null,null,null,null,"Носенко В.О.",null,"________________\n(підпис)"]
["а",null,null,"б",1,2,3,4]
["Усього надійшло кримінальних проваджень із судів",null,null,1,3,null,null,null,null,null,"Заступник прокурора області",null,null,null,null,"Сірик Д.C.",null,"________________\n(підпис)"]
["з них:","направлено до суду в звітному періоді без проведення досудового розслідування",null,2,2]
["Перебувало кримінальних проваджень у слідчого у звітному періоді",null,null,3,1,null,null,null,null,null,"Виконавець",null,null,null,null,"Кожедуб Є.М.",null,"________________\n(підпис)"]
["з них (з рядка 3):","направлено кримінальних проваджень до суду з обвинувальним актом",null,4,1]
[null,"закрито",null,5,null,null,null,null,null,null,"Телефон: __________________ факс: ____________________ електронна пошта: ___________________________"]
[null,"у т.ч.:","за п.п. 1-3 ст. 284 КПК України",6,null,null,null,null,null,null,"Звіт складено в _____ примірниках"]
[null,"направлено до суду клопотань для звільнення від кримінальної відповідальності",null,7,null,null,null,null,null,null,"Прим. №1"]
[null,"направлено до суду клопотань про застосування заходів медичного характеру",null,8,null,null,null,null,null,null,"Прим. №2",null,null,null,null,null,"Вих. № ___   “___” ______________200__р."]
["3упинено проваджень",null,null,9]
["Направлено проваджень за підслідністю",null,null,10]
["Залишок незакінчених кримінальних проваджень",null,null,11]
["Контрольний рядок",null,null,12,{"$f":"SUM(E25:E35)","v":7},{"$f":"SUM(F25:F35)","v":0},{"$f":"SUM(G25:G35)","v":0},{"$f":"SUM(H25:H35)","v":0}]

{"sheet":"Додаток","index":6,"n_rows":23,"n_cols":9,"rows_kept":23,"cut":false,"hidden":false,"merged":[[22,7,23,8],[22,0,23,2],[22,4,23,6],[20,4,21,6],[20,7,21,8],[19,0,21,2],[8,0,11,0],[8,1,8,3],[9,1,9,3],[10,1,11,2],[18,0,18,3],[12,0,12,3],[13,0,14,0],[13,1,14,2],[15,0,17,0],[16,2,17,2],[15,1,15,3],[16,1,17,1],[6,1,6,3],[4,0,4,3],[5,0,5,3],[6,0,7,0],[7,1,7,3],[1,0,1,8],[2,0,3,3],[2,4,3,4],[2,5,3,5],[2,6,2,8]]}
[null,null,null,null,null,null,null,null,"Додаток ________"]
["Стан відшкодування збитків за закінченими кримінальними провадженнями"]
["Показник",null,null,null,"рядок","Усього","з них:"]
[null,null,null,null,null,null,"Фізичним особам","Державним інтересам","Інтересам територіальних громад"]
["а",null,null,null,"б",1,2,3,4]
["Усього забезпечено відшкодування збитків\n(рядок 1 графи 2,4 таблиці 9) (тис.грн.)",null,null,null,1,133,3,130]
["з них на суму \n(тис. грн.)","вилучених предметів злочинного посягання",null,null,2]
[null,"бюджетам усіх рівнів",null,null,3,130,"х",130]
["з них з рядка 1 повернуто (відшкодовано)","коштів",null,null,4,3,3]
[null,"майна та цінностей",null,null,5]
[null,"землі",null,"га",6]
[null,null,null,"сума",7]
["Залишок невідшкодованих збитків під час досудового розслідування (тис.грн.) \n(гр.1 - гр.2 - гр.4 - гр. 5)",null,null,null,8,4661,null,4646]
["у т.ч.","у кримінальних провадженнях про земельні правовідносини",null,"га",9]
[null,null,null,"сума",10]
["з них:","Відшкодовано за прокурорського реагування (тис.грн.)",null,null,11]
[null,"у т.ч.","пов’язаних із\nземельними\nправовідносинами ","га",12]
[null,null,null,"сума",13]
["Контрольний рядок",null,null,null,14,{"$f":"SUM(F6:F18)","v":4927},{"$f":"SUM(G6:G7,G9:G18)","v":6},{"$f":"SUM(H6:H18)","v":4906},{"$f":"SUM(I6:I18)","v":0}]
[{"$f":"'Таб 7-10'!K23","v":"Прокурор"}]
[null,null,null,null,"Носенко В.О.",null,null,"________________\n(підпис)"]
[]
[{"$f":"'Таб 7-10'!K25","v":"Заступник прокурора області"},null,null,null,"Сірик Д.С.",null,null,"________________\n(підпис)"]

{"sheet":"Титульний","index":7,"n_rows":23,"n_cols":6,"rows_kept":23,"cut":false,"hidden":false,"merged":[[6,0,6,6],[8,0,8,3],[9,0,9,3],[9,5,9,6],[1,0,1,6],[3,0,3,6],[4,0,4,6],[11,0,11,3],[8,5,8,6],[22,0,22,6],[11,5,16,6],[15,0,15,3],[16,0,16,3],[12,0,12,3],[13,0,13,3],[10,5,10,6],[10,0,10,3],[14,0,14,3]]}
[]
["ЗВІТНІСТЬ"]
[]
["ПРО РОБОТУ"]
["ОРГАНІВ ДОСУДОВОГО РОЗСЛІДУВАННЯ"]
[]
["за 9 місяців 2015 року"]
[]
["Подають: ",null,null,null,"Терміни\nподання","Форма №1 СЛ"]
["Слідчі підрозділи прокуратур Автономної Республіки Крим, областей, міст Києва і Севастополя – прокурору Автономної Республіки Крим, області, міст Києва і Севастополя ",null,null,null,"до 2 числа за звітним періодом","квартальна"]
["Військові прокурори гарнізонів (на правах міських) – військовому прокурору регіону",null,null,null,"до 2 числа за звітним періодом","ЗАТВЕРДЖЕНО"]
["Слідче управління Головної військової прокуратури – відповідному заступнику Генерального прокурора України",null,null,null,"до 2 числа за звітним періодом","спільний наказ ГП, МВС, СБ, ДПС України\nвід 15 листопада 2012 року № 110/1031/1037/514\nзі змінами (у редакції спільного наказу Генеральної прокуратури України, Міністерства внутрішніх справ України, Служби безпеки України та Державної фіскальної служби України\nвід 12 березня № 23/194/233/157)\n\nза погодженням з Держстатом "]
["Прокурори Автономної Республіки Крим, областей, міст Києва і Севастополя – Генеральній прокуратурі України",null,null,null,"до 3 числа за звітним періодом"]
["Військові прокурори регіонів – Головній військовій прокуратурі Генеральної прокуратури України",null,null,null,"до 3 числа за звітним періодом"]
["Структурні підрозділи Генеральної прокуратури України, які здійснюють досудове розслідування – відділу статистичної інформації та аналізу управління організації ведення Єдиного реєстру досудових розслідувань та статистичної інформації Генеральної прокуратури України",null,null,null,"до 2 числа за звітним періодом"]
["Головна військова прокуратура Генеральної прокуратури України – відділу статистичної інформації та аналізу управління організації ведення Єдиного реєстру досудових розслідувань та статистичної інформації Генеральної прокуратури України",null,null,null,"до 4 числа за звітним періодом"]
["Генеральна прокуратура України – Держстату  (півріччя, рік)",null,null,null,"на 35 день за звітним періодом (півріччя, рік)"]
[]
["Респондент: "]
["Найменування:","Прокуратура Чернігівської області"]
["Місцезнаходження:","14000 Чернігів вул.Князя Чорного,9"]
[]
["(поштовий індекс, область, район, населений пункт, вулиця/провулок, площа тошо, № будинку)"]

{"sheet":"Помилки","index":8,"n_rows":659,"n_cols":16,"rows_kept":659,"cut":false,"hidden":false,"merged":[]}
[null,null,null,"Перевірка помилок",null,null,null,null,null,null,null,null,null,"Перелік контрольних рівностей"]
[null,null,null,"Звіт про роботу органів слідства",null,null,null,null,null,null,"Таблиця 1","В Таблиці 1 число в графі 1 рядку 25 -",null,null,null,{"$f":"'Таблиця 1'!E30","v":0}]
[null,null,null,"Форма № 1-СЛ",null,null,null,null,null,null,null,"не повинно перевищувати число в рядку 24 -",null,null,null,{"$f":"'Таблиця 1'!E29","v":11}]
["Назва:",null,"Прокуратура Чернігівської області",null,null,null,null,null,null,null,null,"В Таблиці 1 число в графі 2 рядку 25 -",null,null,null,{"$f":"'Таблиця 1'!F30","v":0}]
["Період:","9 місяців",2015,null,null,null,null,null,null,null,null,"не повинно перевищувати число в рядку 24 -",null,null,null,{"$f":"'Таблиця 1'!F29","v":14}]
[null,null,null,null,null,null,null,null,null,null,null,"В Таблиці 1 число в графі 3 рядку 25 -",null,null,null,{"$f":"'Таблиця 1'!G30","v":0}]
[null,null,null,null,null,null,null,null,null,null,null,"не повинно перевищувати число в рядку 24 -",null,null,null,{"$f":"'Таблиця 1'!G29","v":0}]
["В таблиці 9 в графі 1 рядку 1 стоїть цифра -     4898",null,null,null,null,null,null,null,null,null,null,"В Таблиці 1 число в графі 4 рядку 25 -",null,null,null,{"$f":"'Таблиця 1'!H30","v":0}]
["за попередній квартал ця цифра була -     7168",null,null,null,null,null,null,null,null,null,null,"не повинно перевищувати число в рядку 24 -",null,null,null,{"$f":"'Таблиця 1'!H29","v":0}]
[null,null,null,null,null,null,null,null,null,null,null,"В Таблиці 1 число в графі 5 рядку 25 -",null,null,null,{"$f":"'Таблиця 1'!I30","v":0}]
["В таблиці 9 в графі 1 рядку 2 стоїть цифра -     4880",null,null,null,null,null,null,null,null,null,null,"не повинно перевищувати число в рядку 24 -",null,null,null,{"$f":"'Таблиця 1'!I29","v":141}]
["за попередній квартал ця цифра була -     7150",null,null,null,null,null,null,null,null,null,null,"В Таблиці 1 число в графі 6 рядку 25 -",null,null,null,{"$f":"'Таблиця 1'!J30","v":0}]
[null,null,null,null,null,null,null,null,null,null,null,"не повинно перевищувати число в рядку 24 -",null,null,null,{"$f":"'Таблиця 1'!J29","v":141}]
["В таблиці 9 в графі 5 рядку 1 стоїть цифра -     104",null,null,null,null,null,null,null,null,null,null,"В Таблиці 1 число в графі 1 рядку 60 -",null,null,null,{"$f":"'Таб 1'!E25","v":0}]
["за попередній квартал ця цифра була -     2400",null,null,null,null,null,null,null,null,null,null,"не повинно перевищувати число в рядку 59 -",null,null,null,{"$f":"'Таб 1'!E24","v":23}]
[null,null,null,null,null,null,null,null,null,null,null,"В Таблиці 1 число в графі 2 рядку 60 -",null,null,null,{"$f":"'Таб 1'!F25","v":0}]
["В таблиці 9 в графі 5 рядку 2 стоїть цифра -     104",null,null,null,null,null,null,null,null,null,null,"не повинно перевищувати число в рядку 59 -",null,null,null,{"$f":"'Таб 1'!F24","v":26}]
["за попередній квартал ця цифра була -     2400",null,null,null,null,null,null,null,null,null,null,"В Таблиці 1 число в графі 5 рядку 60 -",null,null,null,{"$f":"'Таб 1'!I25","v":0}]
[null,null,null,null,null,null,null,null,null,null,null,"не повинно перевищувати число в рядку 59 -",null,null,null,{"$f":"'Таб 1'!I24","v":154}]
[null,null,"В звіті допущено 4 помилки.",null,null,null,null,null,null,null,null,"В Таблиці 1 число в графі 1 рядку 61 -",null,null,null,{"$f":"'Таб 1'!E26","v":10}]
[null,null,null,null,null,null,null,null,null,null,null,"не повинно перевищувати число в рядку 59 -",null,null,null,{"$f":"'Таб 1'!E24","v":23}]
[null,null,null,null,null,null,null,null,null,null,null,"В Таблиці 1 число в графі 2 рядку 61 -",null,null,null,{"$f":"'Таб 1'!F26","v":12}]
[null,null,null,null,null,null,null,null,null,null,null,"не повинно перевищувати число в рядку 59 -",null,null,null,{"$f":"'Таб 1'!F24","v":26}]
[null,null,null,null,null,null,null,null,null,null,null,"В Таблиці 1 число в графі 3 рядку 61 -",null,null,null,{"$f":"'Таб 1'!G26","v":0}]
[null,null,null,null,null,null,null,null,null,null,null,"не повинно перевищувати число в рядку 59 -",null,null,null,{"$f":"'Таб 1'!G24","v":0}]
[null,null,null,null,null,null,null,null,null,null,null,"В Таблиці 1 число в графі 4 рядку 61 -",null,null,null,{"$f":"'Таб 1'!H26","v":0}]
[null,null,null,null,null,null,null,null,null,null,null,"не повинно перевищувати число в рядку 59 -",null,null,null,{"$f":"'Таб 1'!H24","v":0}]
[null,null,null,null,null,null,null,null,null,null,null,"В Таблиці 1 число в графі 5 рядку 61 -",null,null,null,{"$f":"'Таб 1'!I26","v":0}]
[null,null,null,null,null,null,null,null,null,null,null,"не повинно перевищувати число в рядку 59 -",null,null,null,{"$f":"'Таб 1'!I24","v":154}]
[null,null,null,null,null,null,null,null,null,null,null,"В Таблиці 1 число в графі 1 рядку 62 -",null,null,null,{"$f":"'Таб 1'!E27","v":1}]
[null,null,null,null,null,null,null,null,null,null,null,"не повинно перевищувати число в рядку 59 -",null,null,null,{"$f":"'Таб 1'!E24","v":23}]
[null,null,null,null,null,null,null,null,null,null,null,"В Таблиці 1 число в графі 2 рядку 62 -",null,null,null,{"$f":"'Таб 1'!F27","v":1}]
[null,null,null,null,null,null,null,null,null,null,null,"не повинно перевищувати число в рядку 59 -",null,null,null,{"$f":"'Таб 1'!F24","v":26}]
[null,null,null,null,null,null,null,null,null,null,null,"В Таблиці 1 число в графі 3 рядку 62 -",null,null,null,{"$f":"'Таб 1'!G27","v":0}]
[null,null,null,null,null,null,null,null,null,null,null,"не повинно перевищувати число в рядку 59 -",null,null,null,{"$f":"'Таб 1'!G24","v":0}]
[null,null,null,null,null,null,null,null,null,null,null,"В Таблиці 1 число в графі 4 рядку 62 -",null,null,null,{"$f":"'Таб 1'!H27","v":0}]
[null,null,null,null,null,null,null,null,null,null,null,"не повинно перевищувати число в рядку 59 -",null,null,null,{"$f":"'Таб 1'!H24","v":0}]
[null,null,null,null,null,null,null,null,null,null,null,"В Таблиці 1 число в графі 5 рядку 62 -",null,null,null,{"$f":"'Таб 1'!I27","v":0}]
[null,null,null,null,null,null,null,null,null,null,null,"не повинно перевищувати число в рядку 59 -",null,null,null,{"$f":"'Таб 1'!I24","v":154}]
[null,null,null,null,null,null,null,null,null,null,null,"В Таблиці 1 число в графі 6 рядку 62 -",null,null,null,{"$f":"'Таб 1'!J27","v":0}]
[null,null,null,null,null,null,null,null,null,null,null,"не повинно перевищувати число в рядку 59 -",null,null,null,{"$f":"'Таб 1'!J24","v":154}]
[null,null,null,null,null,null,null,null,null,null,null,"В Таблиці 1 число в графі 1 рядку 63 -",null,null,null,{"$f":"'Таб 1'!E28","v":3}]
[null,null,null,null,null,null,null,null,null,null,null,"не повинно перевищувати число в рядку 59 -",null,null,null,{"$f":"'Таб 1'!E24","v":23}]
[null,null,null,null,null,null,null,null,null,null,null,"В Таблиці 1 число в графі 2 рядку 63 -",null,null,null,{"$f":"'Таб 1'!F28","v":3}]
[null,null,null,null,null,null,null,null,null,null,null,"не повинно перевищувати число в рядку 59 -",null,null,null,{"$f":"'Таб 1'!F24","v":26}]
[null,null,null,null,null,null,null,null,null,null,null,"В Таблиці 1 число в графі 3 рядку 63 -",null,null,null,{"$f":"'Таб 1'!G28","v":0}]
[null,null,null,null,null,null,null,null,null,null,null,"не повинно перевищувати число в рядку 59 -",null,null,null,{"$f":"'Таб 1'!G24","v":0}]
[null,null,null,null,null,null,null,null,null,null,null,"В Таблиці 1 число в графі 4 рядку 63 -",null,null,null,{"$f":"'Таб 1'!H28","v":0}]
[null,null,null,null,null,null,null,null,null,null,null,"не повинно перевищувати число в рядку 59 -",null,null,null,{"$f":"'Таб 1'!H24","v":0}]
[null,null,null,null,null,null,null,null,null,null,null,"В Таблиці 1 число в графі 5 рядку 63 -",null,null,null,{"$f":"'Таб 1'!I28","v":0}]
[null,null,null,null,null,null,null,null,null,null,null,"не повинно перевищувати число в рядку 59 -",null,null,null,{"$f":"'Таб 1'!I24","v":154}]
[null,null,null,null,null,null,null,null,null,null,null,"В Таблиці 1 число в графі 6 рядку 63 -",null,null,null,{"$f":"'Таб 1'!J28","v":0}]
[null,null,null,null,null,null,null,null,null,null,null,"не повинно перевищувати число в рядку 59 -",null,null,null,{"$f":"'Таб 1'!J24","v":154}]
[null,null,null,null,null,null,null,null,null,null,null,"В Таблиці 1 число в графі 1 рядку 64 -",null,null,null,{"$f":"'Таб 1'!E29","v":0}]
[null,null,null,null,null,null,null,null,null,null,null,"не повинно перевищувати число в рядку 59 -",null,null,null,{"$f":"'Таб 1'!E24","v":23}]
[null,null,null,null,null,null,null,null,null,null,null,"В Таблиці 1 число в графі 2 рядку 64 -",null,null,null,{"$f":"'Таб 1'!F29","v":0}]
[null,null,null,null,null,null,null,null,null,null,null,"не повинно перевищувати число в рядку 59 -",null,null,null,{"$f":"'Таб 1'!F24","v":26}]
[null,null,null,null,null,null,null,null,null,null,null,"В Таблиці 1 в рядку 62 число у графі 6 -",null,null,null,{"$f":"'Таб 1'!J27","v":0}]
[null,null,null,null,null,null,null,null,null,null,null,"не повинно перевищувати число у графі 5 -",null,null,null,{"$f":"'Таб 1'!I27","v":0}]
[null,null,null,null,null,null,null,null,null,null,null,"В Таблиці 1 в рядку 63 число у графі 6 -",null,null,null,{"$f":"'Таб 1'!J28","v":0}]
[null,null,null,null,null,null,null,null,null,null,null,"не повинно перевищувати число у графі 5 -",null,null,null,{"$f":"'Таб 1'!I28","v":0}]
[null,null,null,null,null,null,null,null,null,null,"Таблиця 1.1","В Таблиці 1.1 в графі 1 сума чисел у рядках 2,4-6 -",null,null,null,{"$f":"'Таб 1.1'!E7+'Таб 1.1'!E9+'Таб 1.1'!E10+'Таб 1.1'!E11","v":17}]
[null,null,null,null,null,null,null,null,null,null,null,"не повинно перевищувати число в рядку 1 -",null,null,null,{"$f":"'Таб 1.1'!E6","v":17}]
[null,null,null,null,null,null,null,null,null,null,null,"В Таблиці 1.1 в графі 2 сума чисел у рядках 2,4-6 -",null,null,null,{"$f":"'Таб 1.1'!F7+'Таб 1.1'!F9+'Таб 1.1'!F10+'Таб 1.1'!F11","v":0}]
[null,null,null,null,null,null,null,null,null,null,null,"не повинно перевищувати число в рядку 1 -",null,null,null,{"$f":"'Таб 1.1'!F6","v":0}]
[null,null,null,null,null,null,null,null,null,null,null,"В Таблиці 1.1 в графі 3 сума чисел у рядках 2,4-6 -",null,null,null,{"$f":"'Таб 1.1'!G7+'Таб 1.1'!G9+'Таб 1.1'!G10+'Таб 1.1'!G11","v":0}]
[null,null,null,null,null,null,null,null,null,null,null,"не повинно перевищувати число в рядку 1 -",null,null,null,{"$f":"'Таб 1.1'!G6","v":0}]
[null,null,null,null,null,null,null,null,null,null,null,"В Таблиці 1.1 в графі 4 сума чисел у рядках 2,4-6 -",null,null,null,{"$f":"'Таб 1.1'!H7+'Таб 1.1'!H9+'Таб 1.1'!H10+'Таб 1.1'!H11","v":17}]
[null,null,null,null,null,null,null,null,null,null,null,"не повинно перевищувати число в рядку 1 -",null,null,null,{"$f":"'Таб 1.1'!H6","v":17}]
[null,null,null,null,null,null,null,null,null,null,null,"В Таблиці 1.1 в графі 5 сума чисел у рядках 2,4-6 -",null,null,null,{"$f":"'Таб 1.1'!I7+'Таб 1.1'!I9+'Таб 1.1'!I10+'Таб 1.1'!I11","v":0}]
[null,null,null,null,null,null,null,null,null,null,null,"не повинно перевищувати число в рядку 1 -",null,null,null,{"$f":"'Таб 1.1'!I6","v":0}]
[null,null,null,null,null,null,null,null,null,null,null,"В Таблиці 1.1 в графі 6 сума чисел у рядках 2,4-6 -",null,null,null,{"$f":"'Таб 1.1'!J7+'Таб 1.1'!J9+'Таб 1.1'!J10+'Таб 1.1'!J11","v":0}]
[null,null,null,null,null,null,null,null,null,null,null,"не повинно перевищувати число в рядку 1 -",null,null,null,{"$f":"'Таб 1.1'!J6","v":0}]
[null,null,null,null,null,null,null,null,null,null,null,"В Таблиці 1.1 в графі 7 сума чисел у рядках 2,4-6 -",null,null,null,{"$f":"'Таб 1.1'!K7+'Таб 1.1'!K9+'Таб 1.1'!K10+'Таб 1.1'!K11","v":0}]
[null,null,null,null,null,null,null,null,null,null,null,"не повинно перевищувати число в рядку 1 -",null,null,null,{"$f":"'Таб 1.1'!K6","v":0}]
[null,null,null,null,null,null,null,null,null,null,null,"В Таблиці 1.1 в графі 8 сума чисел у рядках 2,4-6 -",null,null,null,{"$f":"'Таб 1.1'!L7+'Таб 1.1'!L9+'Таб 1.1'!L10+'Таб 1.1'!L11","v":0}]
[null,null,null,null,null,null,null,null,null,null,null,"не повинно перевищувати число в рядку 1 -",null,null,null,{"$f":"'Таб 1.1'!L6","v":0}]
[null,null,null,null,null,null,null,null,null,null,null,"В Таблиці 1.1 число в графі 1 рядку 3 -",null,null,null,{"$f":"'Таб 1.1'!E8","v":0}]
[null,null,null,null,null,null,null,null,null,null,null,"не повинно перевищувати число в рядку 2 -",null,null,null,{"$f":"'Таб 1.1'!E7","v":17}]
[null,null,null,null,null,null,null,null,null,null,null,"В Таблиці 1.1 число в графі 2 рядку 3 -",null,null,null,{"$f":"'Таб 1.1'!F8","v":0}]
[null,null,null,null,null,null,null,null,null,null,null,"не повинно перевищувати число в рядку 2 -",null,null,null,{"$f":"'Таб 1.1'!F7","v":0}]
[null,null,null,null,null,null,null,null,null,null,null,"В Таблиці 1.1 число в графі 3 рядку 3 -",null,null,null,{"$f":"'Таб 1.1'!G8","v":0}]
[null,null,null,null,null,null,null,null,null,null,null,"не повинно перевищувати число в рядку 2 -",null,null,null,{"$f":"'Таб 1.1'!G7","v":0}]
[null,null,null,null,null,null,null,null,null,null,null,"В Таблиці 1.1 число в графі 4 рядку 3 -",null,null,null,{"$f":"'Таб 1.1'!H8","v":0}]
[null,null,null,null,null,null,null,null,null,null,null,"не повинно перевищувати число в рядку 2 -",null,null,null,{"$f":"'Таб 1.1'!H7","v":17}]
[null,null,null,null,null,null,null,null,null,null,null,"В Таблиці 1.1 число в графі 5 рядку 3 -",null,null,null,{"$f":"'Таб 1.1'!I8","v":0}]
[null,null,null,null,null,null,null,null,null,null,null,"не повинно перевищувати число в рядку 2 -",null,null,null,{"$f":"'Таб 1.1'!I7","v":0}]
[null,null,null,null,null,null,null,null,null,null,null,"В Таблиці 1.1 число в графі 6 рядку 3 -",null,null,null,{"$f":"'Таб 1.1'!J8","v":0}]
[null,null,null,null,null,null,null,null,null,null,null,"не повинно перевищувати число в рядку 2 -",null,null,null,{"$f":"'Таб 1.1'!J7","v":0}]
[null,null,null,null,null,null,null,null,null,null,null,"В Таблиці 1.1 число в графі 7 рядку 3 -",null,null,null,{"$f":"'Таб 1.1'!K8","v":0}]
[null,null,null,null,null,null,null,null,null,null,null,"не повинно перевищувати число в рядку 2 -",null,null,null,{"$f":"'Таб 1.1'!K7","v":0}]
[null,null,null,null,null,null,null,null,null,null,null,"В Таблиці 1.1 число в графі 8 рядку 3 -",null,null,null,{"$f":"'Таб 1.1'!L8","v":0}]
[null,null,null,null,null,null,null,null,null,null,null,"не повинно перевищувати число в рядку 2 -",null,null,null,{"$f":"'Таб 1.1'!L7","v":0}]
[null,null,null,null,null,null,null,null,null,null,null,"В Таблиці 1.1 в графі 1 сума чисел у рядках 8,10-12 -",null,null,null,{"$f":"'Таб 1.1'!E13+'Таб 1.1'!E15+'Таб 1.1'!E16+'Таб 1.1'!E17","v":14}]
[null,null,null,null,null,null,null,null,null,null,null,"не повинно перевищувати число в рядку 7 -",null,null,null,{"$f":"'Таб 1.1'!E12","v":14}]
[null,null,null,null,null,null,null,null,null,null,null,"В Таблиці 1.1 в графі 2 сума чисел у рядках 8,10-12 -",null,null,null,{"$f":"'Таб 1.1'!F13+'Таб 1.1'!F15+'Таб 1.1'!F16+'Таб 1.1'!F17","v":0}]
[null,null,null,null,null,null,null,null,null,null,null,"не повинно перевищувати число в рядку 7 -",null,null,null,{"$f":"'Таб 1.1'!F12","v":0}]
[null,null,null,null,null,null,null,null,null,null,null,"В Таблиці 1.1 в графі 3 сума чисел у рядках 8,10-12 -",null,null,null,{"$f":"'Таб 1.1'!G13+'Таб 1.1'!G15+'Таб 1.1'!G16+'Таб 1.1'!G17","v":0}]
[null,null,null,null,null,null,null,null,null,null,null,"не повинно перевищувати число в рядку 7 -",null,null,null,{"$f":"'Таб 1.1'!G12","v":0}]
[null,null,null,null,null,null,null,null,null,null,null,"В Таблиці 1.1 в графі 4 сума чисел у рядках 8,10-12 -",null,null,null,{"$f":"'Таб 1.1'!H13+'Таб 1.1'!H15+'Таб 1.1'!H16+'Таб 1.1'!H17","v":14}]
[null,null,null,null,null,null,null,null,null,null,null,"не повинно перевищувати число в рядку 7 -",null,null,null,{"$f":"'Таб 1.1'!H12","v":14}]
[null,null,null,null,null,null,null,null,null,null,null,"В Таблиці 1.1 в графі 5 сума чисел у рядках 8,10-12 -",null,null,null,{"$f":"'Таб 1.1'!I13+'Таб 1.1'!I15+'Таб 1.1'!I16+'Таб 1.1'!I17","v":0}]
[null,null,null,null,null,null,null,null,null,null,null,"не повинно перевищувати число в рядку 7 -",null,null,null,{"$f":"'Таб 1.1'!I12","v":0}]
[null,null,null,null,null,null,null,null,null,null,null,"В Таблиці 1.1 в графі 6 сума чисел у рядках 8,10-12 -",null,null,null,{"$f":"'Таб 1.1'!J13+'Таб 1.1'!J15+'Таб 1.1'!J16+'Таб 1.1'!J17","v":0}]
[null,null,null,null,null,null,null,null,null,null,null,"не повинно перевищувати число в рядку 7 -",null,null,null,{"$f":"'Таб 1.1'!J12","v":0}]
[null,null,null,null,null,null,null,null,null,null,null,"В Таблиці 1.1 в графі 7 сума чисел у рядках 8,10-12 -",null,null,null,{"$f":"'Таб 1.1'!K13+'Таб 1.1'!K15+'Таб 1.1'!K16+'Таб 1.1'!K17","v":0}]
[null,null,null,null,null,null,null,null,null,null,null,"не повинно перевищувати число в рядку 7 -",null,null,null,{"$f":"'Таб 1.1'!K12","v":0}]
[null,null,null,null,null,null,null,null,null,null,null,"В Таблиці 1.1 в графі 8 сума чисел у рядках 8,10-12 -",null,null,null,{"$f":"'Таб 1.1'!L13+'Таб 1.1'!L15+'Таб 1.1'!L16+'Таб 1.1'!L17","v":0}]
[null,null,null,null,null,null,null,null,null,null,null,"не повинно перевищувати число в рядку 7 -",null,null,null,{"$f":"'Таб 1.1'!L12","v":0}]
[null,null,null,null,null,null,null,null,null,null,null,"В Таблиці 1.1 число в графі 1 рядку 9 -",null,null,null,{"$f":"'Таб 1.1'!E14","v":0}]
[null,null,null,null,null,null,null,null,null,null,null,"не повинно перевищувати число в рядку 8 -",null,null,null,{"$f":"'Таб 1.1'!E13","v":14}]
[null,null,null,null,null,null,null,null,null,null,null,"В Таблиці 1.1 число в графі 2 рядку 9 -",null,null,null,{"$f":"'Таб 1.1'!F14","v":0}]
[null,null,null,null,null,null,null,null,null,null,null,"не повинно перевищувати число в рядку 8 -",null,null,null,{"$f":"'Таб 1.1'!F13","v":0}]
[null,null,null,null,null,null,null,null,null,null,null,"В Таблиці 1.1 число в графі 3 рядку 9 -",null,null,null,{"$f":"'Таб 1.1'!G14","v":0}]
[null,null,null,null,null,null,null,null,null,null,null,"не повинно перевищувати число в рядку 8 -",null,null,null,{"$f":"'Таб 1.1'!G13","v":0}]
[null,null,null,null,null,null,null,null,null,null,null,"В Таблиці 1.1 число в графі 4 рядку 9 -",null,null,null,{"$f":"'Таб 1.1'!H14","v":0}]
[null,null,null,null,null,null,null,null,null,null,null,"не повинно перевищувати число в рядку 8 -",null,null,null,{"$f":"'Таб 1.1'!H13","v":14}]
[null,null,null,null,null,null,null,null,null,null,null,"В Таблиці 1.1 число в графі 5 рядку 9 -",null,null,null,{"$f":"'Таб 1.1'!I14","v":0}]
[null,null,null,null,null,null,null,null,null,null,null,"не повинно перевищувати число в рядку 8 -",null,null,null,{"$f":"'Таб 1.1'!I13","v":0}]
[null,null,null,null,null,null,null,null,null,null,null,"В Таблиці 1.1 число в графі 6 рядку 9 -",null,null,null,{"$f":"'Таб 1.1'!J14","v":0}]
[null,null,null,null,null,null,null,null,null,null,null,"не повинно перевищувати число в рядку 8 -",null,null,null,{"$f":"'Таб 1.1'!J13","v":0}]
[null,null,null,null,null,null,null,null,null,null,null,"В Таблиці 1.1 число в графі 7 рядку 9 -",null,null,null,{"$f":"'Таб 1.1'!K14","v":0}]
[null,null,null,null,null,null,null,null,null,null,null,"не повинно перевищувати число в рядку 8 -",null,null,null,{"$f":"'Таб 1.1'!K13","v":0}]
[null,null,null,null,null,null,null,null,null,null,null,"В Таблиці 1.1 число в графі 8 рядку 9 -",null,null,null,{"$f":"'Таб 1.1'!L14","v":0}]
[null,null,null,null,null,null,null,null,null,null,null,"не повинно перевищувати число в рядку 8 -",null,null,null,{"$f":"'Таб 1.1'!L13","v":0}]
[null,null,null,null,null,null,null,null,null,null,null,"В Таблиці 1.1 в графі 1 сума чисел у рядках 14,16-18 -",null,null,null,{"$f":"'Таб 1.1'!E19+'Таб 1.1'!E21+'Таб 1.1'!E22+'Таб 1.1'!E23","v":0}]
[null,null,null,null,null,null,null,null,null,null,null,"не повинно перевищувати число в рядку 13 -",null,null,null,{"$f":"'Таб 1.1'!E18","v":0}]
[null,null,null,null,null,null,null,null,null,null,null,"В Таблиці 1.1 в графі 2 сума чисел у рядках 14,16-18 -",null,null,null,{"$f":"'Таб 1.1'!F19+'Таб 1.1'!F21+'Таб 1.1'!F22+'Таб 1.1'!F23","v":0}]
[null,null,null,null,null,null,null,null,null,null,null,"не повинно перевищувати число в рядку 13 -",null,null,null,{"$f":"'Таб 1.1'!F18","v":0}]
[null,null,null,null,null,null,null,null,null,null,null,"В Таблиці 1.1 в графі 3 сума чисел у рядках 14,16-18 -",null,null,null,{"$f":"'Таб 1.1'!G19+'Таб 1.1'!G21+'Таб 1.1'!G22+'Таб 1.1'!G23","v":0}]
[null,null,null,null,null,null,null,null,null,null,null,"не повинно перевищувати число в рядку 13 -",null,null,null,{"$f":"'Таб 1.1'!G18","v":0}]
[null,null,null,null,null,null,null,null,null,null,null,"В Таблиці 1.1 в графі 4 сума чисел у рядках 14,16-18 -",null,null,null,{"$f":"'Таб 1.1'!H19+'Таб 1.1'!H21+'Таб 1.1'!H22+'Таб 1.1'!H23","v":0}]
[null,null,null,null,null,null,null,null,null,null,null,"не повинно перевищувати число в рядку 13 -",null,null,null,{"$f":"'Таб 1.1'!H18","v":0}]
[null,null,null,null,null,null,null,null,null,null,null,"В Таблиці 1.1 в графі 5 сума чисел у рядках 14,16-18 -",null,null,null,{"$f":"'Таб 1.1'!I19+'Таб 1.1'!I21+'Таб 1.1'!I22+'Таб 1.1'!I23","v":0}]
[null,null,null,null,null,null,null,null,null,null,null,"не повинно перевищувати число в рядку 13 -",null,null,null,{"$f":"'Таб 1.1'!I18","v":0}]
[null,null,null,null,null,null,null,null,null,null,null,"В Таблиці 1.1 в графі 6 сума чисел у рядках 14,16-18 -",null,null,null,{"$f":"'Таб 1.1'!J19+'Таб 1.1'!J21+'Таб 1.1'!J22+'Таб 1.1'!J23","v":0}]
[null,null,null,null,null,null,null,null,null,null,null,"не повинно перевищувати число в рядку 13 -",null,null,null,{"$f":"'Таб 1.1'!J18","v":0}]
[null,null,null,null,null,null,null,null,null,null,null,"В Таблиці 1.1 в графі 7 сума чисел у рядках 14,16-18 -",null,null,null,{"$f":"'Таб 1.1'!K19+'Таб 1.1'!K21+'Таб 1.1'!K22+'Таб 1.1'!K23","v":0}]
[null,null,null,null,null,null,null,null,null,null,null,"не повинно перевищувати число в рядку 13 -",null,null,null,{"$f":"'Таб 1.1'!K18","v":0}]
[null,null,null,null,null,null,null,null,null,null,null,"В Таблиці 1.1 в графі 8 сума чисел у рядках 14,16-18 -",null,null,null,{"$f":"'Таб 1.1'!L19+'Таб 1.1'!L21+'Таб 1.1'!L22+'Таб 1.1'!L23","v":0}]
[null,null,null,null,null,null,null,null,null,null,null,"не повинно перевищувати число в рядку 13 -",null,null,null,{"$f":"'Таб 1.1'!L18","v":0}]
[null,null,null,null,null,null,null,null,null,null,null,"В Таблиці 1.1 число в графі 1 рядку 15 -",null,null,null,{"$f":"'Таб 1.1'!E20","v":0}]
[null,null,null,null,null,null,null,null,null,null,null,"не повинно перевищувати число в рядку 14 -",null,null,null,{"$f":"'Таб 1.1'!E19","v":0}]
[null,null,null,null,null,null,null,null,null,null,null,"В Таблиці 1.1 число в графі 2 рядку 15 -",null,null,null,{"$f":"'Таб 1.1'!F20","v":0}]
[null,null,null,null,null,null,null,null,null,null,null,"не повинно перевищувати число в рядку 14 -",null,null,null,{"$f":"'Таб 1.1'!F19","v":0}]
[null,null,null,null,null,null,null,null,null,null,null,"В Таблиці 1.1 число в графі 3 рядку 15 -",null,null,null,{"$f":"'Таб 1.1'!G20","v":0}]
[null,null,null,null,null,null,null,null,null,null,null,"не повинно перевищувати число в рядку 14 -",null,null,null,{"$f":"'Таб 1.1'!G19","v":0}]
[null,null,null,null,null,null,null,null,null,null,null,"В Таблиці 1.1 число в графі 4 рядку 15 -",null,null,null,{"$f":"'Таб 1.1'!H20","v":0}]
[null,null,null,null,null,null,null,null,null,null,null,"не повинно перевищувати число в рядку 14 -",null,null,null,{"$f":"'Таб 1.1'!H19","v":0}]
[null,null,null,null,null,null,null,null,null,null,null,"В Таблиці 1.1 число в графі 5 рядку 15 -",null,null,null,{"$f":"'Таб 1.1'!I20","v":0}]
[null,null,null,null,null,null,null,null,null,null,null,"не повинно перевищувати число в рядку 14 -",null,null,null,{"$f":"'Таб 1.1'!I19","v":0}]
[null,null,null,null,null,null,null,null,null,null,null,"В Таблиці 1.1 число в графі 6 рядку 15 -",null,null,null,{"$f":"'Таб 1.1'!J20","v":0}]
[null,null,null,null,null,null,null,null,null,null,null,"не повинно перевищувати число в рядку 14 -",null,null,null,{"$f":"'Таб 1.1'!J19","v":0}]
[null,null,null,null,null,null,null,null,null,null,null,"В Таблиці 1.1 число в графі 7 рядку 15 -",null,null,null,{"$f":"'Таб 1.1'!K20","v":0}]
[null,null,null,null,null,null,null,null,null,null,null,"не повинно перевищувати число в рядку 14 -",null,null,null,{"$f":"'Таб 1.1'!K19","v":0}]
[null,null,null,null,null,null,null,null,null,null,null,"В Таблиці 1.1 число в графі 8 рядку 15 -",null,null,null,{"$f":"'Таб 1.1'!L20","v":0}]
[null,null,null,null,null,null,null,null,null,null,null,"не повинно перевищувати число в рядку 14 -",null,null,null,{"$f":"'Таб 1.1'!L19","v":0}]
[null,null,null,null,null,null,null,null,null,null,null,"В Таблиці 1.1 в графі 1 сума чисел у рядках 20,22-24 -",null,null,null,{"$f":"'Таб 1.1'!E25+'Таб 1.1'!E27+'Таб 1.1'!E28+'Таб 1.1'!E29","v":0}]
[null,null,null,null,null,null,null,null,null,null,null,"не повинно перевищувати число в рядку 19 -",null,null,null,{"$f":"'Таб 1.1'!E24","v":0}]
[null,null,null,null,null,null,null,null,null,null,null,"В Таблиці 1.1 в графі 2 сума чисел у рядках 20,22-24 -",null,null,null,{"$f":"'Таб 1.1'!F25+'Таб 1.1'!F27+'Таб 1.1'!F28+'Таб 1.1'!F29","v":0}]
[null,null,null,null,null,null,null,null,null,null,null,"не повинно перевищувати число в рядку 19 -",null,null,null,{"$f":"'Таб 1.1'!F24","v":0}]
[null,null,null,null,null,null,null,null,null,null,null,"В Таблиці 1.1 в графі 3 сума чисел у рядках 20,22-24 -",null,null,null,{"$f":"'Таб 1.1'!G25+'Таб 1.1'!G27+'Таб 1.1'!G28+'Таб 1.1'!G29","v":0}]
[null,null,null,null,null,null,null,null,null,null,null,"не повинно перевищувати число в рядку 19 -",null,null,null,{"$f":"'Таб 1.1'!G24","v":0}]
[null,null,null,null,null,null,null,null,null,null,null,"В Таблиці 1.1 в графі 4 сума чисел у рядках 20,22-24 -",null,null,null,{"$f":"'Таб 1.1'!H25+'Таб 1.1'!H27+'Таб 1.1'!H28+'Таб 1.1'!H29","v":0}]
[null,null,null,null,null,null,null,null,null,null,null,"не повинно перевищувати число в рядку 19 -",null,null,null,{"$f":"'Таб 1.1'!H24","v":0}]
[null,null,null,null,null,null,null,null,null,null,null,"В Таблиці 1.1 в графі 5 сума чисел у рядках 20,22-24 -",null,null,null,{"$f":"'Таб 1.1'!I25+'Таб 1.1'!I27+'Таб 1.1'!I28+'Таб 1.1'!I29","v":0}]
[null,null,null,null,null,null,null,null,null,null,null,"не повинно перевищувати число в рядку 19 -",null,null,null,{"$f":"'Таб 1.1'!I24","v":0}]
[null,null,null,null,null,null,null,null,null,null,null,"В Таблиці 1.1 в графі 6 сума чисел у рядках 20,22-24 -",null,null,null,{"$f":"'Таб 1.1'!J25+'Таб 1.1'!J27+'Таб 1.1'!J28+'Таб 1.1'!J29","v":0}]
[null,null,null,null,null,null,null,null,null,null,null,"не повинно перевищувати число в рядку 19 -",null,null,null,{"$f":"'Таб 1.1'!J24","v":0}]
[null,null,null,null,null,null,null,null,null,null,null,"В Таблиці 1.1 в графі 7 сума чисел у рядках 20,22-24 -",null,null,null,{"$f":"'Таб 1.1'!K25+'Таб 1.1'!K27+'Таб 1.1'!K28+'Таб 1.1'!K29","v":0}]
[null,null,null,null,null,null,null,null,null,null,null,"не повинно перевищувати число в рядку 19 -",null,null,null,{"$f":"'Таб 1.1'!K24","v":0}]
[null,null,null,null,null,null,null,null,null,null,null,"В Таблиці 1.1 в графі 8 сума чисел у рядках 20,22-24 -",null,null,null,{"$f":"'Таб 1.1'!L25+'Таб 1.1'!L27+'Таб 1.1'!L28+'Таб 1.1'!L29","v":0}]
[null,null,null,null,null,null,null,null,null,null,null,"не повинно перевищувати число в рядку 19 -",null,null,null,{"$f":"'Таб 1.1'!L24","v":0}]
[null,null,null,null,null,null,null,null,null,null,null,"В Таблиці 1.1 число в графі 1 рядку 21 -",null,null,null,{"$f":"'Таб 1.1'!E26","v":0}]
[null,null,null,null,null,null,null,null,null,null,null,"не повинно перевищувати число в рядку 20 -",null,null,null,{"$f":"'Таб 1.1'!E25","v":0}]
[null,null,null,null,null,null,null,null,null,null,null,"В Таблиці 1.1 число в графі 2 рядку 21 -",null,null,null,{"$f":"'Таб 1.1'!F26","v":0}]
[null,null,null,null,null,null,null,null,null,null,null,"не повинно перевищувати число в рядку 20 -",null,null,null,{"$f":"'Таб 1.1'!F25","v":0}]
[null,null,null,null,null,null,null,null,null,null,null,"В Таблиці 1.1 число в графі 3 рядку 21 -",null,null,null,{"$f":"'Таб 1.1'!G26","v":0}]
[null,null,null,null,null,null,null,null,null,null,null,"не повинно перевищувати число в рядку 20 -",null,null,null,{"$f":"'Таб 1.1'!G25","v":0}]
[null,null,null,null,null,null,null,null,null,null,null,"В Таблиці 1.1 число в графі 4 рядку 21 -",null,null,null,{"$f":"'Таб 1.1'!H26","v":0}]
[null,null,null,null,null,null,null,null,null,null,null,"не повинно перевищувати число в рядку 20 -",null,null,null,{"$f":"'Таб 1.1'!H25","v":0}]
[null,null,null,null,null,null,null,null,null,null,null,"В Таблиці 1.1 число в графі 5 рядку 21 -",null,null,null,{"$f":"'Таб 1.1'!I26","v":0}]
[null,null,null,null,null,null,null,null,null,null,null,"не повинно перевищувати число в рядку 20 -",null,null,null,{"$f":"'Таб 1.1'!I25","v":0}]
[null,null,null,null,null,null,null,null,null,null,null,"В Таблиці 1.1 число в графі 6 рядку 21 -",null,null,null,{"$f":"'Таб 1.1'!J26","v":0}]
[null,null,null,null,null,null,null,null,null,null,null,"не повинно перевищувати число в рядку 20 -",null,null,null,{"$f":"'Таб 1.1'!J25","v":0}]
[null,null,null,null,null,null,null,null,null,null,null,"В Таблиці 1.1 число в графі 7 рядку 21 -",null,null,null,{"$f":"'Таб 1.1'!K26","v":0}]
[null,null,null,null,null,null,null,null,null,null,null,"не повинно перевищувати число в рядку 20 -",null,null,null,{"$f":"'Таб 1.1'!K25","v":0}]
[null,null,null,null,null,null,null,null,null,null,null,"В Таблиці 1.1 число в графі 8 рядку 21 -",null,null,null,{"$f":"'Таб 1.1'!L26","v":0}]
[null,null,null,null,null,null,null,null,null,null,null,"не повинно перевищувати число в рядку 20 -",null,null,null,{"$f":"'Таб 1.1'!L25","v":0}]
[null,null,null,null,null,null,null,null,null,null,null,"В Таблиці 1 в графі 1 сума чисел у рядках 1,12,23,48,58 -",null,null,null,{"$f":"'Таблиця 1'!E6+'Таблиця 1'!E17+'Таблиця 1'!E28+'Таб 1'!E13+'Таб 1'!E23","v":23}]
[null,null,null,null,null,null,null,null,null,null,null,"повинна дорівнювати числу в рядку 59 -",null,null,null,{"$f":"'Таб 1'!E24","v":23}]
[null,null,null,null,null,null,null,null,null,null,null,"В Таблиці 1 в графі 2 сума чисел у рядках 1,12,23,48,58 -",null,null,null,{"$f":"'Таблиця 1'!F6+'Таблиця 1'!F17+'Таблиця 1'!F28+'Таб 1'!F13+'Таб 1'!F23","v":26}]
[null,null,null,null,null,null,null,null,null,null,null,"повинна дорівнювати числу в рядку 59 -",null,null,null,{"$f":"'Таб 1'!F24","v":26}]
[null,null,null,null,null,null,null,null,null,null,null,"В Таблиці 1 в графі 3 сума чисел у рядках 1,12,23,48,58 -",null,null,null,{"$f":"'Таблиця 1'!G6+'Таблиця 1'!G17+'Таблиця 1'!G28+'Таб 1'!G13+'Таб 1'!G23","v":0}]
[null,null,null,null,null,null,null,null,null,null,null,"повинна дорівнювати числу в рядку 59 -",null,null,null,{"$f":"'Таб 1'!G24","v":0}]
[null,null,null,null,null,null,null,null,null,null,null,"В Таблиці 1 в графі 4 сума чисел у рядках 1,12,23,48,58 -",null,null,null,{"$f":"'Таблиця 1'!H6+'Таблиця 1'!H17+'Таблиця 1'!H28+'Таб 1'!H13+'Таб 1'!H23","v":0}]
[null,null,null,null,null,null,null,null,null,null,null,"повинна дорівнювати числу в рядку 59 -",null,null,null,{"$f":"'Таб 1'!H24","v":0}]
[null,null,null,null,null,null,null,null,null,null,null,"В Таблиці 1 в графі 5 сума чисел у рядках 1,12,23,48,58 -",null,null,null,{"$f":"'Таблиця 1'!I6+'Таблиця 1'!I17+'Таблиця 1'!I28+'Таб 1'!I13+'Таб 1'!I23","v":154}]
[null,null,null,null,null,null,null,null,null,null,null,"повинна дорівнювати числу в рядку 59 -",null,null,null,{"$f":"'Таб 1'!I24","v":154}]
[null,null,null,null,null,null,null,null,null,null,null,"В Таблиці 1 в графі 6 сума чисел у рядках 1,12,23,48,58 -",null,null,null,{"$f":"'Таблиця 1'!J6+'Таблиця 1'!J17+'Таблиця 1'!J28+'Таб 1'!J13+'Таб 1'!J23","v":154}]
[null,null,null,null,null,null,null,null,null,null,null,"повинна дорівнювати числу в рядку 59 -",null,null,null,{"$f":"'Таб 1'!J24","v":154}]
[null,null,null,null,null,null,null,null,null,null,null,"В Таблиці 1 в графі 1 сума чисел у рядках 2,7 -",null,null,null,{"$f":"'Таблиця 1'!E7+'Таблиця 1'!E12","v":0}]
[null,null,null,null,null,null,null,null,null,null,null,"повинна дорівнювати числу у рядку 1 -",null,null,null,{"$f":"'Таблиця 1'!E6","v":0}]
[null,null,null,null,null,null,null,null,null,null,null,"В Таблиці 1 в графі 2 сума чисел у рядках 2,7 -",null,null,null,{"$f":"'Таблиця 1'!F7+'Таблиця 1'!F12","v":0}]
[null,null,null,null,null,null,null,null,null,null,null,"повинна дорівнювати числу у рядку 1 -",null,null,null,{"$f":"'Таблиця 1'!F6","v":0}]
[null,null,null,null,null,null,null,null,null,null,null,"В Таблиці 1 в графі 3 сума чисел у рядках 2,7 -",null,null,null,{"$f":"'Таблиця 1'!G7+'Таблиця 1'!G12","v":0}]
[null,null,null,null,null,null,null,null,null,null,null,"повинна дорівнювати числу у рядку 1 -",null,null,null,{"$f":"'Таблиця 1'!G6","v":0}]
[null,null,null,null,null,null,null,null,null,null,null,"В Таблиці 1 в графі 4 сума чисел у рядках 2,7 -",null,null,null,{"$f":"'Таблиця 1'!H7+'Таблиця 1'!H12","v":0}]
[null,null,null,null,null,null,null,null,null,null,null,"повинна дорівнювати числу у рядку 1 -",null,null,null,{"$f":"'Таблиця 1'!H6","v":0}]
[null,null,null,null,null,null,null,null,null,null,null,"В Таблиці 1 в графі 5 сума чисел у рядках 2,7 -",null,null,null,{"$f":"'Таблиця 1'!I7+'Таблиця 1'!I12","v":0}]
[null,null,null,null,null,null,null,null,null,null,null,"повинна дорівнювати числу у рядку 1 -",null,null,null,{"$f":"'Таблиця 1'!I6","v":0}]
[null,null,null,null,null,null,null,null,null,null,null,"В Таблиці 1 в графі 6 сума чисел у рядках 2,7 -",null,null,null,{"$f":"'Таблиця 1'!J7+'Таблиця 1'!J12","v":0}]
[null,null,null,null,null,null,null,null,null,null,null,"повинна дорівнювати числу у рядку 1 -",null,null,null,{"$f":"'Таблиця 1'!J6","v":0}]
[null,null,null,null,null,null,null,null,null,null,null,"В Таблиці 1 в графі 1 сума чисел у рядках 3-6 -",null,null,null,{"$f":"SUM('Таблиця 1'!E8:E11)","v":0}]
[null,null,null,null,null,null,null,null,null,null,null,"повинна дорівнювати числу у рядку 2 -",null,null,null,{"$f":"'Таблиця 1'!E7","v":0}]
[null,null,null,null,null,null,null,null,null,null,null,"В Таблиці 1 в графі 2 сума чисел у рядках 3-6 -",null,null,null,{"$f":"SUM('Таблиця 1'!F8:F11)","v":0}]
[null,null,null,null,null,null,null,null,null,null,null,"повинна дорівнювати числу у рядку 2 -",null,null,null,{"$f":"'Таблиця 1'!F7","v":0}]
[null,null,null,null,null,null,null,null,null,null,null,"В Таблиці 1 в графі 3 сума чисел у рядках 3-6 -",null,null,null,{"$f":"SUM('Таблиця 1'!G8:G11)","v":0}]
[null,null,null,null,null,null,null,null,null,null,null,"повинна дорівнювати числу у рядку 2 -",null,null,null,{"$f":"'Таблиця 1'!G7","v":0}]
[null,null,null,null,null,null,null,null,null,null,null,"В Таблиці 1 в графі 4 сума чисел у рядках 3-6 -",null,null,null,{"$f":"SUM('Таблиця 1'!H8:H11)","v":0}]
[null,null,null,null,null,null,null,null,null,null,null,"повинна дорівнювати числу у рядку 2 -",null,null,null,{"$f":"'Таблиця 1'!H7","v":0}]
[null,null,null,null,null,null,null,null,null,null,null,"В Таблиці 1 в графі 5 сума чисел у рядках 3-6 -",null,null,null,{"$f":"SUM('Таблиця 1'!I8:I11)","v":0}]
[null,null,null,null,null,null,null,null,null,null,null,"повинна дорівнювати числу у рядку 2 -",null,null,null,{"$f":"'Таблиця 1'!I7","v":0}]
[null,null,null,null,null,null,null,null,null,null,null,"В Таблиці 1 в графі 6 сума чисел у рядках 3-6 -",null,null,null,{"$f":"SUM('Таблиця 1'!J8:J11)","v":0}]
[null,null,null,null,null,null,null,null,null,null,null,"повинна дорівнювати числу у рядку 2 -",null,null,null,{"$f":"'Таблиця 1'!J7","v":0}]
[null,null,null,null,null,null,null,null,null,null,null,"В Таблиці 1 в графі 1 сума чисел у рядках 8-11 -",null,null,null,{"$f":"SUM('Таблиця 1'!E13:E16)","v":0}]
[null,null,null,null,null,null,null,null,null,null,null,"повинна дорівнювати числу у рядку 7 -",null,null,null,{"$f":"'Таблиця 1'!E12","v":0}]
[null,null,null,null,null,null,null,null,null,null,null,"В Таблиці 1 в графі 2 сума чисел у рядках 8-11 -",null,null,null,{"$f":"SUM('Таблиця 1'!F13:F16)","v":0}]
[null,null,null,null,null,null,null,null,null,null,null,"повинна дорівнювати числу у рядку 7 -",null,null,null,{"$f":"'Таблиця 1'!F12","v":0}]
[null,null,null,null,null,null,null,null,null,null,null,"В Таблиці 1 в графі 3 сума чисел у рядках 8-11 -",null,null,null,{"$f":"SUM('Таблиця 1'!G13:G16)","v":0}]
[null,null,null,null,null,null,null,null,null,null,null,"повинна дорівнювати числу у рядку 7 -",null,null,null,{"$f":"'Таблиця 1'!G12","v":0}]
[null,null,null,null,null,null,null,null,null,null,null,"В Таблиці 1 в графі 4 сума чисел у рядках 8-11 -",null,null,null,{"$f":"SUM('Таблиця 1'!H13:H16)","v":0}]
[null,null,null,null,null,null,null,null,null,null,null,"повинна дорівнювати числу у рядку 7 -",null,null,null,{"$f":"'Таблиця 1'!H12","v":0}]
[null,null,null,null,null,null,null,null,null,null,null,"В Таблиці 1 в графі 5 сума чисел у рядках 8-11 -",null,null,null,{"$f":"SUM('Таблиця 1'!I13:I16)","v":0}]
[null,null,null,null,null,null,null,null,null,null,null,"повинна дорівнювати числу у рядку 7 -",null,null,null,{"$f":"'Таблиця 1'!I12","v":0}]
[null,null,null,null,null,null,null,null,null,null,null,"В Таблиці 1 в графі 6 сума чисел у рядках 8-11 -",null,null,null,{"$f":"SUM('Таблиця 1'!J13:J16)","v":0}]
[null,null,null,null,null,null,null,null,null,null,null,"повинна дорівнювати числу у рядку 7 -",null,null,null,{"$f":"'Таблиця 1'!J12","v":0}]
[null,null,null,null,null,null,null,null,null,null,null,"В Таблиці 1 в графі 1 сума чисел у рядках 13,18 -",null,null,null,{"$f":"'Таблиця 1'!E18+'Таблиця 1'!E23","v":2}]
[null,null,null,null,null,null,null,null,null,null,null,"повинна дорівнювати числу у рядку 12 -",null,null,null,{"$f":"'Таблиця 1'!E17","v":2}]
[null,null,null,null,null,null,null,null,null,null,null,"В Таблиці 1 в графі 2 сума чисел у рядках 13,18 -",null,null,null,{"$f":"'Таблиця 1'!F18+'Таблиця 1'!F23","v":2}]
[null,null,null,null,null,null,null,null,null,null,null,"повинна дорівнювати числу у рядку 12 -",null,null,null,{"$f":"'Таблиця 1'!F17","v":2}]
[null,null,null,null,null,null,null,null,null,null,null,"В Таблиці 1 в графі 3 сума чисел у рядках 13,18 -",null,null,null,{"$f":"'Таблиця 1'!G18+'Таблиця 1'!G23","v":0}]
[null,null,null,null,null,null,null,null,null,null,null,"повинна дорівнювати числу у рядку 12 -",null,null,null,{"$f":"'Таблиця 1'!G17","v":0}]
[null,null,null,null,null,null,null,null,null,null,null,"В Таблиці 1 в графі 4 сума чисел у рядках 13,18 -",null,null,null,{"$f":"'Таблиця 1'!H18+'Таблиця 1'!H23","v":0}]
[null,null,null,null,null,null,null,null,null,null,null,"повинна дорівнювати числу у рядку 12 -",null,null,null,{"$f":"'Таблиця 1'!H17","v":0}]
[null,null,null,null,null,null,null,null,null,null,null,"В Таблиці 1 в графі 5 сума чисел у рядках 13,18 -",null,null,null,{"$f":"'Таблиця 1'!I18+'Таблиця 1'!I23","v":0}]
[null,null,null,null,null,null,null,null,null,null,null,"повинна дорівнювати числу у рядку 12 -",null,null,null,{"$f":"'Таблиця 1'!I17","v":0}]
[null,null,null,null,null,null,null,null,null,null,null,"В Таблиці 1 в графі 6 сума чисел у рядках 13,18 -",null,null,null,{"$f":"'Таблиця 1'!J18+'Таблиця 1'!J23","v":0}]
[null,null,null,null,null,null,null,null,null,null,null,"повинна дорівнювати числу у рядку 12 -",null,null,null,{"$f":"'Таблиця 1'!J17","v":0}]
[null,null,null,null,null,null,null,null,null,null,null,"В Таблиці 1 в графі 1 сума чисел у рядках 14-17 -",null,null,null,{"$f":"SUM('Таблиця 1'!E19:E22)","v":2}]
[null,null,null,null,null,null,null,null,null,null,null,"повинна дорівнювати числу у рядку 13 -",null,null,null,{"$f":"'Таблиця 1'!E18","v":2}]
[null,null,null,null,null,null,null,null,null,null,null,"В Таблиці 1 в графі 2 сума чисел у рядках 14-17 -",null,null,null,{"$f":"SUM('Таблиця 1'!F19:F22)","v":2}]
[null,null,null,null,null,null,null,null,null,null,null,"повинна дорівнювати числу у рядку 13 -",null,null,null,{"$f":"'Таблиця 1'!F18","v":2}]
[null,null,null,null,null,null,null,null,null,null,null,"В Таблиці 1 в графі 3 сума чисел у рядках 14-17 -",null,null,null,{"$f":"SUM('Таблиця 1'!G19:G22)","v":0}]
[null,null,null,null,null,null,null,null,null,null,null,"повинна дорівнювати числу у рядку 13 -",null,null,null,{"$f":"'Таблиця 1'!G18","v":0}]
[null,null,null,null,null,null,null,null,null,null,null,"В Таблиці 1 в графі 4 сума чисел у рядках 14-17 -",null,null,null,{"$f":"SUM('Таблиця 1'!H19:H22)","v":0}]
[null,null,null,null,null,null,null,null,null,null,null,"повинна дорівнювати числу у рядку 13 -",null,null,null,{"$f":"'Таблиця 1'!H18","v":0}]
[null,null,null,null,null,null,null,null,null,null,null,"В Таблиці 1 в графі 5 сума чисел у рядках 14-17 -",null,null,null,{"$f":"SUM('Таблиця 1'!I19:I22)","v":0}]
[null,null,null,null,null,null,null,null,null,null,null,"повинна дорівнювати числу у рядку 13 -",null,null,null,{"$f":"'Таблиця 1'!I18","v":0}]
[null,null,null,null,null,null,null,null,null,null,null,"В Таблиці 1 в графі 6 сума чисел у рядках 14-17 -",null,null,null,{"$f":"SUM('Таблиця 1'!J19:J22)","v":0}]
[null,null,null,null,null,null,null,null,null,null,null,"повинна дорівнювати числу у рядку 13 -",null,null,null,{"$f":"'Таблиця 1'!J18","v":0}]
[null,null,null,null,null,null,null,null,null,null,null,"В Таблиці 1 в графі 1 сума чисел у рядках 19-22 -",null,null,null,{"$f":"SUM('Таблиця 1'!E24:E27)","v":0}]
[null,null,null,null,null,null,null,null,null,null,null,"повинна дорівнювати числу у рядку 18 -",null,null,null,{"$f":"'Таблиця 1'!E23","v":0}]
[null,null,null,null,null,null,null,null,null,null,null,"В Таблиці 1 в графі 2 сума чисел у рядках 19-22 -",null,null,null,{"$f":"SUM('Таблиця 1'!F24:F27)","v":0}]
[null,null,null,null,null,null,null,null,null,null,null,"повинна дорівнювати числу у рядку 18 -",null,null,null,{"$f":"'Таблиця 1'!F23","v":0}]
[null,null,null,null,null,null,null,null,null,null,null,"В Таблиці 1 в графі 3 сума чисел у рядках 19-22 -",null,null,null,{"$f":"SUM('Таблиця 1'!G24:G27)","v":0}]
[null,null,null,null,null,null,null,null,null,null,null,"повинна дорівнювати числу у рядку 18 -",null,null,null,{"$f":"'Таблиця 1'!G23","v":0}]
[null,null,null,null,null,null,null,null,null,null,null,"В Таблиці 1 в графі 4 сума чисел у рядках 19-22 -",null,null,null,{"$f":"SUM('Таблиця 1'!H24:H27)","v":0}]
[null,null,null,null,null,null,null,null,null,null,null,"повинна дорівнювати числу у рядку 18 -",null,null,null,{"$f":"'Таблиця 1'!H23","v":0}]
[null,null,null,null,null,null,null,null,null,null,null,"В Таблиці 1 в графі 5 сума чисел у рядках 19-22 -",null,null,null,{"$f":"SUM('Таблиця 1'!I24:I27)","v":0}]
[null,null,null,null,null,null,null,null,null,null,null,"повинна дорівнювати числу у рядку 18 -",null,null,null,{"$f":"'Таблиця 1'!I23","v":0}]
[null,null,null,null,null,null,null,null,null,null,null,"В Таблиці 1 в графі 6 сума чисел у рядках 19-22 -",null,null,null,{"$f":"SUM('Таблиця 1'!J24:J27)","v":0}]
[null,null,null,null,null,null,null,null,null,null,null,"повинна дорівнювати числу у рядку 18 -",null,null,null,{"$f":"'Таблиця 1'!J23","v":0}]
[null,null,null,null,null,null,null,null,null,null,null,"В Таблиці 1 в графі 1 сума чисел у рядках 24,26-36 -",null,null,null,{"$f":"'Таблиця 1'!E29+'Таблиця 1'!E31+'Таблиця 1'!E32+'Таблиця 1'!E33+'Таблиця 1'!E34+'Таблиця 1'!E35+'Таблиця 1'!E36+'Таблиця 1'!E37+'Таблиця 1'!E38+'Таблиця 1'!E39+'Таблиця 1'!E40+'Таблиця 1'!E41","v":17}]
[null,null,null,null,null,null,null,null,null,null,null,"повинна дорівнювати числу у рядку 23 -",null,null,null,{"$f":"'Таблиця 1'!E28","v":17}]
[null,null,null,null,null,null,null,null,null,null,null,"В Таблиці 1 в графі 2 сума чисел у рядках 24,26-36 -",null,null,null,{"$f":"'Таблиця 1'!F29+'Таблиця 1'!F31+'Таблиця 1'!F32+'Таблиця 1'!F33+'Таблиця 1'!F34+'Таблиця 1'!F35+'Таблиця 1'!F36+'Таблиця 1'!F37+'Таблиця 1'!F38+'Таблиця 1'!F39+'Таблиця 1'!F40+'Таблиця 1'!F41","v":20}]
[null,null,null,null,null,null,null,null,null,null,null,"повинна дорівнювати числу у рядку 23 -",null,null,null,{"$f":"'Таблиця 1'!F28","v":20}]
[null,null,null,null,null,null,null,null,null,null,null,"В Таблиці 1 в графі 3 сума чисел у рядках 24,26-36 -",null,null,null,{"$f":"'Таблиця 1'!G29+'Таблиця 1'!G31+'Таблиця 1'!G32+'Таблиця 1'!G33+'Таблиця 1'!G34+'Таблиця 1'!G35+'Таблиця 1'!G36+'Таблиця 1'!G37+'Таблиця 1'!G38+'Таблиця 1'!G39+'Таблиця 1'!G40+'Таблиця 1'!G41","v":0}]
[null,null,null,null,null,null,null,null,null,null,null,"повинна дорівнювати числу у рядку 23 -",null,null,null,{"$f":"'Таблиця 1'!G28","v":0}]
[null,null,null,null,null,null,null,null,null,null,null,"В Таблиці 1 в графі 4 сума чисел у рядках 24,26-36 -",null,null,null,{"$f":"'Таблиця 1'!H29+'Таблиця 1'!H31+'Таблиця 1'!H32+'Таблиця 1'!H33+'Таблиця 1'!H34+'Таблиця 1'!H35+'Таблиця 1'!H36+'Таблиця 1'!H37+'Таблиця 1'!H38+'Таблиця 1'!H39+'Таблиця 1'!H40+'Таблиця 1'!H41","v":0}]
[null,null,null,null,null,null,null,null,null,null,null,"повинна дорівнювати числу у рядку 23 -",null,null,null,{"$f":"'Таблиця 1'!H28","v":0}]
[null,null,null,null,null,null,null,null,null,null,null,"В Таблиці 1 в графі 5 сума чисел у рядках 24,26-36 -",null,null,null,{"$f":"'Таблиця 1'!I29+'Таблиця 1'!I31+'Таблиця 1'!I32+'Таблиця 1'!I33+'Таблиця 1'!I34+'Таблиця 1'!I35+'Таблиця 1'!I36+'Таблиця 1'!I37+'Таблиця 1'!I38+'Таблиця 1'!I39+'Таблиця 1'!I40+'Таблиця 1'!I41","v":154}]
[null,null,null,null,null,null,null,null,null,null,null,"повинна дорівнювати числу у рядку 23 -",null,null,null,{"$f":"'Таблиця 1'!I28","v":154}]
[null,null,null,null,null,null,null,null,null,null,null,"В Таблиці 1 в графі 6 сума чисел у рядках 24,26-36 -",null,null,null,{"$f":"'Таблиця 1'!J29+'Таблиця 1'!J31+'Таблиця 1'!J32+'Таблиця 1'!J33+'Таблиця 1'!J34+'Таблиця 1'!J35+'Таблиця 1'!J36+'Таблиця 1'!J37+'Таблиця 1'!J38+'Таблиця 1'!J39+'Таблиця 1'!J40+'Таблиця 1'!J41","v":154}]
[null,null,null,null,null,null,null,null,null,null,null,"повинна дорівнювати числу у рядку 23 -",null,null,null,{"$f":"'Таблиця 1'!J28","v":154}]
[null,null,null,null,null,null,null,null,null,null,null,"В Таблиці 1 в графі 1 сума чисел у рядках 37-43 -",null,null,null,{"$f":"'Таб 1'!E2+'Таб 1'!E8","v":17}]
[null,null,null,null,null,null,null,null,null,null,null,"повинна дорівнювати числу у рядку 23 -",null,null,null,{"$f":"'Таблиця 1'!E28","v":17}]
[null,null,null,null,null,null,null,null,null,null,null,"В Таблиці 1 в графі 2 сума чисел у рядках 37-43 -",null,null,null,{"$f":"'Таб 1'!F2+'Таб 1'!F8","v":20}]
[null,null,null,null,null,null,null,null,null,null,null,"повинна дорівнювати числу у рядку 23 -",null,null,null,{"$f":"'Таблиця 1'!F28","v":20}]
[null,null,null,null,null,null,null,null,null,null,null,"В Таблиці 1 в графі 3 сума чисел у рядках 37-43 -",null,null,null,{"$f":"'Таб 1'!G2+'Таб 1'!G8","v":0}]
[null,null,null,null,null,null,null,null,null,null,null,"повинна дорівнювати числу у рядку 23 -",null,null,null,{"$f":"'Таблиця 1'!G28","v":0}]
[null,null,null,null,null,null,null,null,null,null,null,"В Таблиці 1 в графі 4 сума чисел у рядках 37-43 -",null,null,null,{"$f":"'Таб 1'!H2+'Таб 1'!H8","v":0}]
[null,null,null,null,null,null,null,null,null,null,null,"повинна дорівнювати числу у рядку 23 -",null,null,null,{"$f":"'Таблиця 1'!H28","v":0}]
[null,null,null,null,null,null,null,null,null,null,null,"В Таблиці 1 в графі 5 сума чисел у рядках 37-43 -",null,null,null,{"$f":"'Таб 1'!I2+'Таб 1'!I8","v":154}]
[null,null,null,null,null,null,null,null,null,null,null,"повинна дорівнювати числу у рядку 23 -",null,null,null,{"$f":"'Таблиця 1'!I28","v":154}]
[null,null,null,null,null,null,null,null,null,null,null,"В Таблиці 1 в графі 6 сума чисел у рядках 37-43 -",null,null,null,{"$f":"'Таб 1'!J2+'Таб 1'!J8","v":154}]
[null,null,null,null,null,null,null,null,null,null,null,"повинна дорівнювати числу у рядку 23 -",null,null,null,{"$f":"'Таблиця 1'!J28","v":154}]
[null,null,null,null,null,null,null,null,null,null,null,"В Таблиці 1 в графі 1 сума чисел у рядках 38-42 -",null,null,null,{"$f":"SUM('Таб 1'!E3:E7)","v":7}]
[null,null,null,null,null,null,null,null,null,null,null,"повинна дорівнювати числу у рядку 37 -",null,null,null,{"$f":"'Таб 1'!E2","v":7}]
[null,null,null,null,null,null,null,null,null,null,null,"В Таблиці 1 в графі 2 сума чисел у рядках 38-42 -",null,null,null,{"$f":"SUM('Таб 1'!F3:F7)","v":9}]
[null,null,null,null,null,null,null,null,null,null,null,"повинна дорівнювати числу у рядку 37 -",null,null,null,{"$f":"'Таб 1'!F2","v":9}]
[null,null,null,null,null,null,null,null,null,null,null,"В Таблиці 1 в графі 3 сума чисел у рядках 38-42 -",null,null,null,{"$f":"SUM('Таб 1'!G3:G7)","v":0}]
[null,null,null,null,null,null,null,null,null,null,null,"повинна дорівнювати числу у рядку 37 -",null,null,null,{"$f":"'Таб 1'!G2","v":0}]
[null,null,null,null,null,null,null,null,null,null,null,"В Таблиці 1 в графі 4 сума чисел у рядках 38-42 -",null,null,null,{"$f":"SUM('Таб 1'!H3:H7)","v":0}]
[null,null,null,null,null,null,null,null,null,null,null,"повинна дорівнювати числу у рядку 37 -",null,null,null,{"$f":"'Таб 1'!H2","v":0}]
[null,null,null,null,null,null,null,null,null,null,null,"В Таблиці 1 в графі 5 сума чисел у рядках 38-42 -",null,null,null,{"$f":"SUM('Таб 1'!I3:I7)","v":138}]
[null,null,null,null,null,null,null,null,null,null,null,"повинна дорівнювати числу у рядку 37 -",null,null,null,{"$f":"'Таб 1'!I2","v":138}]
[null,null,null,null,null,null,null,null,null,null,null,"В Таблиці 1 в графі 6 сума чисел у рядках 38-42 -",null,null,null,{"$f":"SUM('Таб 1'!J3:J7)","v":138}]
[null,null,null,null,null,null,null,null,null,null,null,"повинна дорівнювати числу у рядку 37 -",null,null,null,{"$f":"'Таб 1'!J2","v":138}]
[null,null,null,null,null,null,null,null,null,null,null,"В Таблиці 1 в графі 1 сума чисел у рядках 44-47 -",null,null,null,{"$f":"SUM('Таб 1'!E9:E12)","v":10}]
[null,null,null,null,null,null,null,null,null,null,null,"повинна дорівнювати числу у рядку 43 -",null,null,null,{"$f":"'Таб 1'!E8","v":10}]
[null,null,null,null,null,null,null,null,null,null,null,"В Таблиці 1 в графі 2 сума чисел у рядках 44-47 -",null,null,null,{"$f":"SUM('Таб 1'!F9:F12)","v":11}]
[null,null,null,null,null,null,null,null,null,null,null,"повинна дорівнювати числу у рядку 43 -",null,null,null,{"$f":"'Таб 1'!F8","v":11}]
[null,null,null,null,null,null,null,null,null,null,null,"В Таблиці 1 в графі 3 сума чисел у рядках 44-47 -",null,null,null,{"$f":"SUM('Таб 1'!G9:G12)","v":0}]
[null,null,null,null,null,null,null,null,null,null,null,"повинна дорівнювати числу у рядку 43 -",null,null,null,{"$f":"'Таб 1'!G8","v":0}]
[null,null,null,null,null,null,null,null,null,null,null,"В Таблиці 1 в графі 4 сума чисел у рядках 44-47 -",null,null,null,{"$f":"SUM('Таб 1'!H9:H12)","v":0}]
[null,null,null,null,null,null,null,null,null,null,null,"повинна дорівнювати числу у рядку 43 -",null,null,null,{"$f":"'Таб 1'!H8","v":0}]
[null,null,null,null,null,null,null,null,null,null,null,"В Таблиці 1 в графі 5 сума чисел у рядках 44-47 -",null,null,null,{"$f":"SUM('Таб 1'!I9:I12)","v":16}]
[null,null,null,null,null,null,null,null,null,null,null,"повинна дорівнювати числу у рядку 43 -",null,null,null,{"$f":"'Таб 1'!I8","v":16}]
[null,null,null,null,null,null,null,null,null,null,null,"В Таблиці 1 в графі 6 сума чисел у рядках 44-47 -",null,null,null,{"$f":"SUM('Таб 1'!J9:J12)","v":16}]
[null,null,null,null,null,null,null,null,null,null,null,"повинна дорівнювати числу у рядку 43 -",null,null,null,{"$f":"'Таб 1'!J8","v":16}]
[null,null,null,null,null,null,null,null,null,null,null,"В Таблиці 1 в графі 1 сума чисел у рядках 49,53 -",null,null,null,{"$f":"'Таб 1'!E14+'Таб 1'!E18","v":0}]
[null,null,null,null,null,null,null,null,null,null,null,"повинна дорівнювати числу у рядку 48 -",null,null,null,{"$f":"'Таб 1'!E13","v":0}]
[null,null,null,null,null,null,null,null,null,null,null,"В Таблиці 1 в графі 2 сума чисел у рядках 49,53 -",null,null,null,{"$f":"'Таб 1'!F14+'Таб 1'!F18","v":0}]
[null,null,null,null,null,null,null,null,null,null,null,"повинна дорівнювати числу у рядку 48 -",null,null,null,{"$f":"'Таб 1'!F13","v":0}]
[null,null,null,null,null,null,null,null,null,null,null,"В Таблиці 1 в графі 3 сума чисел у рядках 49,53 -",null,null,null,{"$f":"'Таб 1'!G14+'Таб 1'!G18","v":0}]
[null,null,null,null,null,null,null,null,null,null,null,"повинна дорівнювати числу у рядку 48 -",null,null,null,{"$f":"'Таб 1'!G13","v":0}]
[null,null,null,null,null,null,null,null,null,null,null,"В Таблиці 1 в графі 4 сума чисел у рядках 49,53 -",null,null,null,{"$f":"'Таб 1'!H14+'Таб 1'!H18","v":0}]
[null,null,null,null,null,null,null,null,null,null,null,"повинна дорівнювати числу у рядку 48 -",null,null,null,{"$f":"'Таб 1'!H13","v":0}]
[null,null,null,null,null,null,null,null,null,null,null,"В Таблиці 1 в графі 5 сума чисел у рядках 49,53 -",null,null,null,{"$f":"'Таб 1'!I14+'Таб 1'!I18","v":0}]
[null,null,null,null,null,null,null,null,null,null,null,"повинна дорівнювати числу у рядку 48 -",null,null,null,{"$f":"'Таб 1'!I13","v":0}]
[null,null,null,null,null,null,null,null,null,null,null,"В Таблиці 1 в графі 6 сума чисел у рядках 49,53 -",null,null,null,{"$f":"'Таб 1'!J14+'Таб 1'!J18","v":0}]
[null,null,null,null,null,null,null,null,null,null,null,"повинна дорівнювати числу у рядку 48 -",null,null,null,{"$f":"'Таб 1'!J13","v":0}]
[null,null,null,null,null,null,null,null,null,null,null,"В Таблиці 1 в графі 1 сума чисел у рядках 50-52 -",null,null,null,{"$f":"SUM('Таб 1'!E15:E17)","v":0}]
[null,null,null,null,null,null,null,null,null,null,null,"повинна дорівнювати числу у рядку 49 -",null,null,null,{"$f":"'Таб 1'!E14","v":0}]
[null,null,null,null,null,null,null,null,null,null,null,"В Таблиці 1 в графі 2 сума чисел у рядках 50-52 -",null,null,null,{"$f":"SUM('Таб 1'!F15:F17)","v":0}]
[null,null,null,null,null,null,null,null,null,null,null,"повинна дорівнювати числу у рядку 49 -",null,null,null,{"$f":"'Таб 1'!F14","v":0}]
[null,null,null,null,null,null,null,null,null,null,null,"В Таблиці 1 в графі 3 сума чисел у рядках 50-52 -",null,null,null,{"$f":"SUM('Таб 1'!G15:G17)","v":0}]
[null,null,null,null,null,null,null,null,null,null,null,"повинна дорівнювати числу у рядку 49 -",null,null,null,{"$f":"'Таб 1'!G14","v":0}]
[null,null,null,null,null,null,null,null,null,null,null,"В Таблиці 1 в графі 4 сума чисел у рядках 50-52 -",null,null,null,{"$f":"SUM('Таб 1'!H15:H17)","v":0}]
[null,null,null,null,null,null,null,null,null,null,null,"повинна дорівнювати числу у рядку 49 -",null,null,null,{"$f":"'Таб 1'!H14","v":0}]
[null,null,null,null,null,null,null,null,null,null,null,"В Таблиці 1 в графі 5 сума чисел у рядках 50-52 -",null,null,null,{"$f":"SUM('Таб 1'!I15:I17)","v":0}]
[null,null,null,null,null,null,null,null,null,null,null,"повинна дорівнювати числу у рядку 49 -",null,null,null,{"$f":"'Таб 1'!I14","v":0}]
[null,null,null,null,null,null,null,null,null,null,null,"В Таблиці 1 в графі 6 сума чисел у рядках 50-52 -",null,null,null,{"$f":"SUM('Таб 1'!J15:J17)","v":0}]
[null,null,null,null,null,null,null,null,null,null,null,"повинна дорівнювати числу у рядку 49 -",null,null,null,{"$f":"'Таб 1'!J14","v":0}]
[null,null,null,null,null,null,null,null,null,null,null,"В Таблиці 1 в графі 1 сума чисел у рядках 54-57 -",null,null,null,{"$f":"SUM('Таб 1'!E19:E22)","v":0}]
[null,null,null,null,null,null,null,null,null,null,null,"повинна дорівнювати числу у рядку 53 -",null,null,null,{"$f":"'Таб 1'!E18","v":0}]
[null,null,null,null,null,null,null,null,null,null,null,"В Таблиці 1 в графі 2 сума чисел у рядках 54-57 -",null,null,null,{"$f":"SUM('Таб 1'!F19:F22)","v":0}]
[null,null,null,null,null,null,null,null,null,null,null,"повинна дорівнювати числу у рядку 53 -",null,null,null,{"$f":"'Таб 1'!F18","v":0}]
[null,null,null,null,null,null,null,null,null,null,null,"В Таблиці 1 в графі 3 сума чисел у рядках 54-57 -",null,null,null,{"$f":"SUM('Таб 1'!G19:G22)","v":0}]
[null,null,null,null,null,null,null,null,null,null,null,"повинна дорівнювати числу у рядку 53 -",null,null,null,{"$f":"'Таб 1'!G18","v":0}]
[null,null,null,null,null,null,null,null,null,null,null,"В Таблиці 1 в графі 4 сума чисел у рядках 54-57 -",null,null,null,{"$f":"SUM('Таб 1'!H19:H22)","v":0}]
[null,null,null,null,null,null,null,null,null,null,null,"повинна дорівнювати числу у рядку 53 -",null,null,null,{"$f":"'Таб 1'!H18","v":0}]
[null,null,null,null,null,null,null,null,null,null,null,"В Таблиці 1 в графі 5 сума чисел у рядках 54-57 -",null,null,null,{"$f":"SUM('Таб 1'!I19:I22)","v":0}]
[null,null,null,null,null,null,null,null,null,null,null,"повинна дорівнювати числу у рядку 53 -",null,null,null,{"$f":"'Таб 1'!I18","v":0}]
[null,null,null,null,null,null,null,null,null,null,null,"В Таблиці 1 в графі 6 сума чисел у рядках 54-57 -",null,null,null,{"$f":"SUM('Таб 1'!J19:J22)","v":0}]
[null,null,null,null,null,null,null,null,null,null,null,"повинна дорівнювати числу у рядку 53 -",null,null,null,{"$f":"'Таб 1'!J18","v":0}]
[null,null,null,null,null,null,null,null,null,null,null,"В Таблиці 1.1 у рядку 1 сума чисел у графах 2-7 -",null,null,null,{"$f":"SUM('Таб 1.1'!F6:K6)","v":17}]
[null,null,null,null,null,null,null,null,null,null,null,"повинна дорівнювати числу у графі 1 -",null,null,null,{"$f":"'Таб 1.1'!E6","v":17}]
[null,null,null,null,null,null,null,null,null,null,null,"В Таблиці 1.1 у рядку 2 сума чисел у графах 2-7 -",null,null,null,{"$f":"SUM('Таб 1.1'!F7:K7)","v":17}]
[null,null,null,null,null,null,null,null,null,null,null,"повинна дорівнювати числу у графі 1 -",null,null,null,{"$f":"'Таб 1.1'!E7","v":17}]
[null,null,null,null,null,null,null,null,null,null,null,"В Таблиці 1.1 у рядку 3 сума чисел у графах 2-7 -",null,null,null,{"$f":"SUM('Таб 1.1'!F8:K8)","v":0}]
[null,null,null,null,null,null,null,null,null,null,null,"повинна дорівнювати числу у графі 1 -",null,null,null,{"$f":"'Таб 1.1'!E8","v":0}]
[null,null,null,null,null,null,null,null,null,null,null,"В Таблиці 1.1 у рядку 4 сума чисел у графах 2-7 -",null,null,null,{"$f":"SUM('Таб 1.1'!F9:K9)","v":0}]
[null,null,null,null,null,null,null,null,null,null,null,"повинна дорівнювати числу у графі 1 -",null,null,null,{"$f":"'Таб 1.1'!E9","v":0}]
[null,null,null,null,null,null,null,null,null,null,null,"В Таблиці 1.1 у рядку 5 сума чисел у графах 2-7 -",null,null,null,{"$f":"SUM('Таб 1.1'!F10:K10)","v":0}]
[null,null,null,null,null,null,null,null,null,null,null,"повинна дорівнювати числу у графі 1 -",null,null,null,{"$f":"'Таб 1.1'!E10","v":0}]
[null,null,null,null,null,null,null,null,null,null,null,"В Таблиці 1.1 у рядку 6 сума чисел у графах 2-7 -",null,null,null,{"$f":"SUM('Таб 1.1'!F11:K11)","v":0}]
[null,null,null,null,null,null,null,null,null,null,null,"повинна дорівнювати числу у графі 1 -",null,null,null,{"$f":"'Таб 1.1'!E11","v":0}]
[null,null,null,null,null,null,null,null,null,null,null,"В Таблиці 1.1 у рядку 7 сума чисел у графах 2-7 -",null,null,null,{"$f":"SUM('Таб 1.1'!F12:K12)","v":14}]
[null,null,null,null,null,null,null,null,null,null,null,"повинна дорівнювати числу у графі 1 -",null,null,null,{"$f":"'Таб 1.1'!E12","v":14}]
[null,null,null,null,null,null,null,null,null,null,null,"В Таблиці 1.1 у рядку 8 сума чисел у графах 2-7 -",null,null,null,{"$f":"SUM('Таб 1.1'!F13:K13)","v":14}]
[null,null,null,null,null,null,null,null,null,null,null,"повинна дорівнювати числу у графі 1 -",null,null,null,{"$f":"'Таб 1.1'!E13","v":14}]
[null,null,null,null,null,null,null,null,null,null,null,"В Таблиці 1.1 у рядку 9 сума чисел у графах 2-7 -",null,null,null,{"$f":"SUM('Таб 1.1'!F14:K14)","v":0}]
[null,null,null,null,null,null,null,null,null,null,null,"повинна дорівнювати числу у графі 1 -",null,null,null,{"$f":"'Таб 1.1'!E14","v":0}]
[null,null,null,null,null,null,null,null,null,null,null,"В Таблиці 1.1 у рядку 10 сума чисел у графах 2-7 -",null,null,null,{"$f":"SUM('Таб 1.1'!F15:K15)","v":0}]
[null,null,null,null,null,null,null,null,null,null,null,"повинна дорівнювати числу у графі 1 -",null,null,null,{"$f":"'Таб 1.1'!E15","v":0}]
[null,null,null,null,null,null,null,null,null,null,null,"В Таблиці 1.1 у рядку 11 сума чисел у графах 2-7 -",null,null,null,{"$f":"SUM('Таб 1.1'!F16:K16)","v":0}]
[null,null,null,null,null,null,null,null,null,null,null,"повинна дорівнювати числу у графі 1 -",null,null,null,{"$f":"'Таб 1.1'!E16","v":0}]
[null,null,null,null,null,null,null,null,null,null,null,"В Таблиці 1.1 у рядку 12 сума чисел у графах 2-7 -",null,null,null,{"$f":"SUM('Таб 1.1'!F17:K17)","v":0}]
[null,null,null,null,null,null,null,null,null,null,null,"повинна дорівнювати числу у графі 1 -",null,null,null,{"$f":"'Таб 1.1'!E17","v":0}]
[null,null,null,null,null,null,null,null,null,null,null,"В Таблиці 1.1 у рядку 13 сума чисел у графах 2-7 -",null,null,null,{"$f":"SUM('Таб 1.1'!F18:K18)","v":0}]
[null,null,null,null,null,null,null,null,null,null,null,"повинна дорівнювати числу у графі 1 -",null,null,null,{"$f":"'Таб 1.1'!E18","v":0}]
[null,null,null,null,null,null,null,null,null,null,null,"В Таблиці 1.1 у рядку 14 сума чисел у графах 2-7 -",null,null,null,{"$f":"SUM('Таб 1.1'!F19:K19)","v":0}]
[null,null,null,null,null,null,null,null,null,null,null,"повинна дорівнювати числу у графі 1 -",null,null,null,{"$f":"'Таб 1.1'!E19","v":0}]
[null,null,null,null,null,null,null,null,null,null,null,"В Таблиці 1.1 у рядку 15 сума чисел у графах 2-7 -",null,null,null,{"$f":"SUM('Таб 1.1'!F20:K20)","v":0}]
[null,null,null,null,null,null,null,null,null,null,null,"повинна дорівнювати числу у графі 1 -",null,null,null,{"$f":"'Таб 1.1'!E20","v":0}]
[null,null,null,null,null,null,null,null,null,null,null,"В Таблиці 1.1 у рядку 16 сума чисел у графах 2-7 -",null,null,null,{"$f":"SUM('Таб 1.1'!F21:K21)","v":0}]
[null,null,null,null,null,null,null,null,null,null,null,"повинна дорівнювати числу у графі 1 -",null,null,null,{"$f":"'Таб 1.1'!E21","v":0}]
[null,null,null,null,null,null,null,null,null,null,null,"В Таблиці 1.1 у рядку 17 сума чисел у графах 2-7 -",null,null,null,{"$f":"SUM('Таб 1.1'!F22:K22)","v":0}]
[null,null,null,null,null,null,null,null,null,null,null,"повинна дорівнювати числу у графі 1 -",null,null,null,{"$f":"'Таб 1.1'!E22","v":0}]
[null,null,null,null,null,null,null,null,null,null,null,"В Таблиці 1.1 у рядку 18 сума чисел у графах 2-7 -",null,null,null,{"$f":"SUM('Таб 1.1'!F23:K23)","v":0}]
[null,null,null,null,null,null,null,null,null,null,null,"повинна дорівнювати числу у графі 1 -",null,null,null,{"$f":"'Таб 1.1'!E23","v":0}]
[null,null,null,null,null,null,null,null,null,null,null,"В Таблиці 1.1 у рядку 19 сума чисел у графах 2-7 -",null,null,null,{"$f":"SUM('Таб 1.1'!F24:K24)","v":0}]
[null,null,null,null,null,null,null,null,null,null,null,"повинна дорівнювати числу у графі 1 -",null,null,null,{"$f":"'Таб 1.1'!E24","v":0}]
[null,null,null,null,null,null,null,null,null,null,null,"В Таблиці 1.1 у рядку 20 сума чисел у графах 2-7 -",null,null,null,{"$f":"SUM('Таб 1.1'!F25:K25)","v":0}]
[null,null,null,null,null,null,null,null,null,null,null,"повинна дорівнювати числу у графі 1 -",null,null,null,{"$f":"'Таб 1.1'!E25","v":0}]
[null,null,null,null,null,null,null,null,null,null,null,"В Таблиці 1.1 у рядку 21 сума чисел у графах 2-7 -",null,null,null,{"$f":"SUM('Таб 1.1'!F26:K26)","v":0}]
[null,null,null,null,null,null,null,null,null,null,null,"повинна дорівнювати числу у графі 1 -",null,null,null,{"$f":"'Таб 1.1'!E26","v":0}]
[null,null,null,null,null,null,null,null,null,null,null,"В Таблиці 1.1 у рядку 22 сума чисел у графах 2-7 -",null,null,null,{"$f":"SUM('Таб 1.1'!F27:K27)","v":0}]
[null,null,null,null,null,null,null,null,null,null,null,"повинна дорівнювати числу у графі 1 -",null,null,null,{"$f":"'Таб 1.1'!E27","v":0}]
[null,null,null,null,null,null,null,null,null,null,null,"В Таблиці 1.1 у рядку 23 сума чисел у графах 2-7 -",null,null,null,{"$f":"SUM('Таб 1.1'!F28:K28)","v":0}]
[null,null,null,null,null,null,null,null,null,null,null,"повинна дорівнювати числу у графі 1 -",null,null,null,{"$f":"'Таб 1.1'!E28","v":0}]
[null,null,null,null,null,null,null,null,null,null,null,"В Таблиці 1.1 у рядку 24 сума чисел у графах 2-7 -",null,null,null,{"$f":"SUM('Таб 1.1'!F29:K29)","v":0}]
[null,null,null,null,null,null,null,null,null,null,null,"повинна дорівнювати числу у графі 1 -",null,null,null,{"$f":"'Таб 1.1'!E29","v":0}]
[null,null,null,null,null,null,null,null,null,null,null,"В Таблиці 1.1 у рядку 25 сума чисел у графах 2-7 -",null,null,null,{"$f":"SUM('Таб 1.1'!F30:K30)","v":0}]
[null,null,null,null,null,null,null,null,null,null,null,"повинна дорівнювати числу у графі 1 -",null,null,null,{"$f":"'Таб 1.1'!E30","v":0}]
[null,null,null,null,null,null,null,null,null,null,null,"В Таблиці 1.1 у рядку 26 сума чисел у графах 2-7 -",null,null,null,{"$f":"SUM('Таб 1.1'!F31:K31)","v":16}]
[null,null,null,null,null,null,null,null,null,null,null,"повинна дорівнювати числу у графі 1 -",null,null,null,{"$f":"'Таб 1.1'!E31","v":16}]
[null,null,null,null,null,null,null,null,null,null,null,"В Таблиці 1.1 у рядку 27 сума чисел у графах 2-7 -",null,null,null,{"$f":"SUM('Таб 1.1'!F32:K32)","v":0}]
[null,null,null,null,null,null,null,null,null,null,null,"повинна дорівнювати числу у графі 1 -",null,null,null,{"$f":"'Таб 1.1'!E32","v":0}]
[null,null,null,null,null,null,null,null,null,null,null,"В Таблиці 1 у графі 1,3,5 число в рядку 59 і графа 1 рядок 64 -",null,null,null,{"$f":"'Таб 1'!E24+'Таб 1'!G24+'Таб 1'!I24+'Таб 1'!E29","v":177}]
[null,null,null,null,null,null,null,null,null,null,null,"повинно дорівнювати числу в Таблиці 3 рядок 1 -",null,null,null,{"$f":"'Таб 2-3'!G36","v":177}]
[null,null,null,null,null,null,null,null,null,null,null,"В Таблиці 3 в графі 1 сума чисел у рядках 3-5 -",null,null,null,{"$f":"SUM('Таб 2-3'!G38:G40)","v":3}]
[null,null,null,null,null,null,null,null,null,null,null,"повинна дорівнювати числу у рядку 2 -",null,null,null,{"$f":"'Таб 2-3'!G37","v":3}]
[null,null,null,null,null,null,null,null,null,null,null,"В Таблиці 1 у графі 6 число в рядку 59 -",null,null,null,{"$f":"'Таб 1'!J24","v":154}]
[null,null,null,null,null,null,null,null,null,null,null,"повинно дорівнювати сумі чисел в Таблиці 4  рядків 1-3 -",null,null,null,{"$f":"SUM('Таб 4-6'!E4:E6)","v":154}]
[null,null,null,null,null,null,null,null,null,null,"Таблиця 2","В Таблиці 2 сума чисел в рядках 1, 2 -",null,null,null,{"$f":"'Таб 2-3'!G4+'Таб 2-3'!G5","v":348}]
[null,null,null,null,null,null,null,null,null,null,null,"повинна дорівнювати сумі чисел в рядках 5,15-17,21 -",null,null,null,{"$f":"'Таб 2-3'!G8+'Таб 2-3'!G18+'Таб 2-3'!G19+'Таб 2-3'!G20+'Таб 2-3'!G24","v":348}]
[null,null,null,null,null,null,null,null,null,null,null,"В Таблиці 2 сума чисел у рядках 18-20 -",null,null,null,{"$f":"SUM('Таб 2-3'!G21:G23)","v":7}]
[null,null,null,null,null,null,null,null,null,null,null,"повинна дорівнювати числу у рядку 17 -",null,null,null,{"$f":"'Таб 2-3'!G20","v":7}]
[null,null,null,null,null,null,null,null,null,null,null,"В Таблиці 2 сума чисел у рядках 8,11-13 -",null,null,null,{"$f":"'Таб 2-3'!G11+'Таб 2-3'!G14+'Таб 2-3'!G15+'Таб 2-3'!G16","v":245}]
[null,null,null,null,null,null,null,null,null,null,null,"повинна дорівнювати числу у рядку 5 -",null,null,null,{"$f":"'Таб 2-3'!G8","v":245}]
[null,null,null,null,null,null,null,null,null,null,null,"В Таблиці 2 число у рядку 3 -",null,null,null,{"$f":"'Таб 2-3'!G6","v":4}]
[null,null,null,null,null,null,null,null,null,null,null,"не повинно перевищувати число у рядку 2 -",null,null,null,{"$f":"'Таб 2-3'!G5","v":310}]
[null,null,null,null,null,null,null,null,null,null,null,"В Таблиці 2 число у рядку 4 -",null,null,null,{"$f":"'Таб 2-3'!G7","v":27}]
[null,null,null,null,null,null,null,null,null,null,null,"не повинно перевищувати число у рядку 2 -",null,null,null,{"$f":"'Таб 2-3'!G5","v":310}]
[null,null,null,null,null,null,null,null,null,null,null,"В Таблиці 2 число у рядку 6 -",null,null,null,{"$f":"'Таб 2-3'!G9","v":185}]
[null,null,null,null,null,null,null,null,null,null,null,"не повинно перевищувати число у рядку 5 -",null,null,null,{"$f":"'Таб 2-3'!G8","v":245}]
[null,null,null,null,null,null,null,null,null,null,null,"В Таблиці 2 число у рядку 7 -",null,null,null,{"$f":"'Таб 2-3'!G10","v":3}]
[null,null,null,null,null,null,null,null,null,null,null,"не повинно перевищувати число у рядку 5 -",null,null,null,{"$f":"'Таб 2-3'!G8","v":245}]
[null,null,null,null,null,null,null,null,null,null,null,"В Таблиці 2 сума чисел у рядках 9-10 -",null,null,null,{"$f":"SUM('Таб 2-3'!G12:G13)","v":2}]
[null,null,null,null,null,null,null,null,null,null,null,"не повинна перевищувати число у рядку 8 -",null,null,null,{"$f":"'Таб 2-3'!G11","v":26}]
[null,null,null,null,null,null,null,null,null,null,null,"В Таблиці 2 число у рядку 14 -",null,null,null,{"$f":"'Таб 2-3'!G17","v":0}]
[null,null,null,null,null,null,null,null,null,null,null,"не повинно перевищувати число у рядку 13 -",null,null,null,{"$f":"'Таб 2-3'!G16","v":219}]
[null,null,null,null,null,null,null,null,null,null,null,"В Таблиці 2 число у рядку 22 -",null,null,null,{"$f":"'Таб 2-3'!G25","v":4}]
[null,null,null,null,null,null,null,null,null,null,null,"не повинно перевищувати число у рядку 21 -",null,null,null,{"$f":"'Таб 2-3'!G24","v":54}]
[null,null,null,null,null,null,null,null,null,null,null,"В Таблиці 2 сума чисел у рядках 23-24 -",null,null,null,{"$f":"SUM('Таб 2-3'!G26:G27)","v":0}]
[null,null,null,null,null,null,null,null,null,null,null,"не повинна перевищувати число у рядку 22 -",null,null,null,{"$f":"'Таб 2-3'!G25","v":4}]
[null,null,null,null,null,null,null,null,null,null,null,"В Таблиці 2 сума чисел у рядках 26-27 -",null,null,null,{"$f":"SUM('Таб 2-3'!G29:G30)","v":0}]
[null,null,null,null,null,null,null,null,null,null,null,"не повинна перевищувати число у рядку 25 -",null,null,null,{"$f":"'Таб 2-3'!G28","v":1}]
[null,null,null,null,null,null,null,null,null,null,null,"В Таблиці 1 у графі 1 число в рядку 59 -",null,null,null,{"$f":"'Таб 1'!E24","v":23}]
[null,null,null,null,null,null,null,null,null,null,null,"не повинно перевищувати число в Таблиці 2 рядку 8 -",null,null,null,{"$f":"'Таб 2-3'!G11","v":26}]
[null,null,null,null,null,null,null,null,null,null,null,"В Таблиці 1 у графі 1 число в рядку 64 -",null,null,null,{"$f":"'Таб 1'!E29","v":0}]
[null,null,null,null,null,null,null,null,null,null,null,"не повинно перевищувати число в Таблиці 2 рядку 11 -",null,null,null,{"$f":"'Таб 2-3'!G14","v":0}]
[null,null,null,null,null,null,null,null,null,null,null,"В Таблиці 1 у графі 3 число в рядку 59 -",null,null,null,{"$f":"'Таб 1'!G24","v":0}]
[null,null,null,null,null,null,null,null,null,null,null,"не повинно перевищувати число в Таблиці 2 рядку 12 -",null,null,null,{"$f":"'Таб 2-3'!G15","v":0}]
[null,null,null,null,null,null,null,null,null,null,null,"В Таблиці 1 у графі 5 число в рядку 59 -",null,null,null,{"$f":"'Таб 1'!I24","v":154}]
[null,null,null,null,null,null,null,null,null,null,null,"не повинно перевищувати число в Таблиці 2 рядку 13 -",null,null,null,{"$f":"'Таб 2-3'!G16","v":219}]
[null,null,null,null,null,null,null,null,null,null,"Таблиця 3","В Таблиці 3 число в рядку 2-",null,null,null,{"$f":"'Таб 2-3'!G37","v":3}]
[null,null,null,null,null,null,null,null,null,null,null,"не повинно перевищувати число в рядку 1 -",null,null,null,{"$f":"'Таб 2-3'!G36","v":177}]
[null,null,null,null,null,null,null,null,null,null,null,"В Таблиці 3 число в рядку 2 -",null,null,null,{"$f":"'Таб 2-3'!G37","v":3}]
[null,null,null,null,null,null,null,null,null,null,null,"не повинно перевищувати число в Таблиці 2 рядку 7 -",null,null,null,{"$f":"'Таб 2-3'!G10","v":3}]
[null,null,null,null,null,null,null,null,null,null,"Таблиця 4","В Таблиці 4 сума чисел у рядках 1-8 -",null,null,null,{"$f":"SUM('Таб 4-6'!E4:E11)","v":154}]
[null,null,null,null,null,null,null,null,null,null,null,"не повинно перевищувати число в Таблиці 1 у графі 5 рядку 59 -",null,null,null,{"$f":"'Таб 1'!I24","v":154}]
[null,null,null,null,null,null,null,null,null,null,"Таблиця 5","В Таблиці 5 сума чисел у рядках 2-3 -",null,null,null,{"$f":"SUM('Таб 4-6'!E19:E20)","v":0}]
[null,null,null,null,null,null,null,null,null,null,null,"не повинно перевищувати число у рядку 1 -",null,null,null,{"$f":"'Таб 4-6'!E18","v":0}]
[null,null,null,null,null,null,null,null,null,null,null,"В Таблиці 5 число у рядку 5 -",null,null,null,{"$f":"'Таб 4-6'!E22","v":0}]
[null,null,null,null,null,null,null,null,null,null,null,"не повинно перевищувати число у рядку 4 -",null,null,null,{"$f":"'Таб 4-6'!E21","v":0}]
[null,null,null,null,null,null,null,null,null,null,null,"В Таблиці 5 сума чисел у рядках 7-8 -",null,null,null,{"$f":"SUM('Таб 4-6'!E24:E25)","v":0}]
[null,null,null,null,null,null,null,null,null,null,null,"не повинно перевищувати число у рядку 6 -",null,null,null,{"$f":"'Таб 4-6'!E23","v":2}]
[null,null,null,null,null,null,null,null,null,null,null,"В Таблиці 5 число у рядку 10 -",null,null,null,{"$f":"'Таб 4-6'!E27","v":0}]
[null,null,null,null,null,null,null,null,null,null,null,"не повинно перевищувати число у рядку 9 -",null,null,null,{"$f":"'Таб 4-6'!E26","v":0}]
[null,null,null,null,null,null,null,null,null,null,null,"В Таблиці 5 сума чисел у рядках 12-13 -",null,null,null,{"$f":"SUM('Таб 4-6'!E29:E30)","v":0}]
[null,null,null,null,null,null,null,null,null,null,null,"не повинно перевищувати число у рядку 11 -",null,null,null,{"$f":"'Таб 4-6'!E28","v":0}]
[null,null,null,null,null,null,null,null,null,null,null,"В Таблиці 5 число у рядку 15 -",null,null,null,{"$f":"'Таб 4-6'!E32","v":0}]
[null,null,null,null,null,null,null,null,null,null,null,"не повинно перевищувати число у рядку 14 -",null,null,null,{"$f":"'Таб 4-6'!E31","v":0}]
[null,null,null,null,null,null,null,null,null,null,null,"В Таблиці 5 число у рядку 17 -",null,null,null,{"$f":"'Таб 4-6'!E34","v":0}]
[null,null,null,null,null,null,null,null,null,null,null,"не повинно перевищувати число у рядку 16 -",null,null,null,{"$f":"'Таб 4-6'!E33","v":0}]
[null,null,null,null,null,null,null,null,null,null,null,"В Таблиці 5 число у рядку 19 -",null,null,null,{"$f":"'Таб 4-6'!E36","v":0}]
[null,null,null,null,null,null,null,null,null,null,null,"не повинно перевищувати число у рядку 18 -",null,null,null,{"$f":"'Таб 4-6'!E35","v":0}]
[null,null,null,null,null,null,null,null,null,null,"Таблиця 6","В Таблиці 6 число у рядку 2 -",null,null,null,{"$f":"'Таб 4-6'!K5","v":3}]
[null,null,null,null,null,null,null,null,null,null,null,"не повинно перевищувати число у рядку 1 -",null,null,null,{"$f":"'Таб 4-6'!K4","v":3}]
[null,null,null,null,null,null,null,null,null,null,null,"В Таблиці 6 число у рядку 4 -",null,null,null,{"$f":"'Таб 4-6'!K7","v":2}]
[null,null,null,null,null,null,null,null,null,null,null,"не повинно перевищувати число у рядку 3 -",null,null,null,{"$f":"'Таб 4-6'!K6","v":2}]
[null,null,null,null,null,null,null,null,null,null,null,"В Таблиці 6 число у рядку 6 -",null,null,null,{"$f":"'Таб 4-6'!K9","v":1}]
[null,null,null,null,null,null,null,null,null,null,null,"не повинно перевищувати число у рядку 5 -",null,null,null,{"$f":"'Таб 4-6'!K8","v":1}]
[null,null,null,null,null,null,null,null,null,null,null,"В Таблиці 6 число у рядку 8 -",null,null,null,{"$f":"'Таб 4-6'!K11","v":0}]
[null,null,null,null,null,null,null,null,null,null,null,"не повинно перевищувати число у рядку 7 -",null,null,null,{"$f":"'Таб 4-6'!K10","v":0}]
[null,null,null,null,null,null,null,null,null,null,null,"В Таблиці 6 число в рядку 2 -",null,null,null,{"$f":"'Таб 4-6'!K5","v":3}]
[null,null,null,null,null,null,null,null,null,null,null,"не повинно перевищувати число в Таблиці 2 рядку 17 -",null,null,null,{"$f":"'Таб 2-3'!G20","v":7}]
[null,null,null,null,null,null,null,null,null,null,null,"В Таблиці 6 число в рядку 4 -",null,null,null,{"$f":"'Таб 4-6'!K7","v":2}]
[null,null,null,null,null,null,null,null,null,null,null,"не повинно перевищувати число в Таблиці 2 рядку 18 -",null,null,null,{"$f":"'Таб 2-3'!G21","v":4}]
[null,null,null,null,null,null,null,null,null,null,null,"В Таблиці 6 число в рядку 6 -",null,null,null,{"$f":"'Таб 4-6'!K9","v":1}]
[null,null,null,null,null,null,null,null,null,null,null,"не повинно перевищувати число в Таблиці 2 рядку 19 -",null,null,null,{"$f":"'Таб 2-3'!G22","v":3}]
[null,null,null,null,null,null,null,null,null,null,null,"В Таблиці 6 число в рядку 8 -",null,null,null,{"$f":"'Таб 4-6'!K11","v":0}]
[null,null,null,null,null,null,null,null,null,null,null,"не повинно перевищувати число в Таблиці 2 рядку 20 -",null,null,null,{"$f":"'Таб 2-3'!G23","v":0}]
[null,null,null,null,null,null,null,null,null,null,"Таблиця 7","В Таблиці 7 число у рядку 2 -",null,null,null,{"$f":"'Таб 7-10'!I5","v":1}]
[null,null,null,null,null,null,null,null,null,null,null,"не повинна перевищувати число у рядку 1 -",null,null,null,{"$f":"'Таб 7-10'!I4","v":12}]
[null,null,null,null,null,null,null,null,null,null,null,"В Таблиці 7 сума чисел у рядках 3,7-8,13 -",null,null,null,{"$f":"'Таб 7-10'!I6+'Таб 7-10'!I10+'Таб 7-10'!I11+'Таб 7-10'!I16","v":0}]
[null,null,null,null,null,null,null,null,null,null,null,"не повинна перевищувати число у рядку 2 -",null,null,null,{"$f":"'Таб 7-10'!I5","v":1}]
[null,null,null,null,null,null,null,null,null,null,null,"В Таблиці 7 сума чисел у рядках 4-6 -",null,null,null,{"$f":"SUM('Таб 7-10'!I7:I9)","v":0}]
[null,null,null,null,null,null,null,null,null,null,null,"не повинно перевищувати число у рядку 3 -",null,null,null,{"$f":"'Таб 7-10'!I6","v":0}]
[null,null,null,null,null,null,null,null,null,null,null,"В Таблиці 7 сума чисел у рядках 9-12 -",null,null,null,{"$f":"SUM('Таб 7-10'!I12:I15)","v":0}]
[null,null,null,null,null,null,null,null,null,null,null,"не повинна перевищувати число у рядку 6 -",null,null,null,{"$f":"'Таб 7-10'!I11","v":0}]
[null,null,null,null,null,null,null,null,null,null,null,"В Таблиці 6 сума чисел у рядках 3,5,7 -",null,null,null,{"$f":"'Таб 4-6'!K6+'Таб 4-6'!K8+'Таб 4-6'!K10","v":3}]
[null,null,null,null,null,null,null,null,null,null,null,"повинна дорівнювати числу у рядку 1 -",null,null,null,{"$f":"'Таб 4-6'!K4","v":3}]
[null,null,null,null,null,null,null,null,null,null,null,"В Таблиці 6 сума чисел у рядках 4,6,8 -",null,null,null,{"$f":"'Таб 4-6'!K7+'Таб 4-6'!K9+'Таб 4-6'!K11","v":3}]
[null,null,null,null,null,null,null,null,null,null,null,"повинна дорівнювати числу у рядку 2 -",null,null,null,{"$f":"'Таб 4-6'!K5","v":3}]
[null,null,null,null,null,null,null,null,null,null,null,"В Таблиці 8 в графі 1 сума чисел у рядках 2-3 -",null,null,null,{"$f":"SUM('Таб 7-10'!E26:E27)","v":3}]
[null,null,null,null,null,null,null,null,null,null,null,"повинна дорівнювати числу у рядку 1 -",null,null,null,{"$f":"'Таб 7-10'!E25","v":3}]
[null,null,null,null,null,null,null,null,null,null,null,"В Таблиці 8 в графі 2 сума чисел у рядках 2-3 -",null,null,null,{"$f":"SUM('Таб 7-10'!F26:F27)","v":0}]
[null,null,null,null,null,null,null,null,null,null,null,"повинна дорівнювати числу у рядку 1 -",null,null,null,{"$f":"'Таб 7-10'!F25","v":0}]
[null,null,null,null,null,null,null,null,null,null,null,"В Таблиці 8 в графі 3 сума чисел у рядках 2-3 -",null,null,null,{"$f":"SUM('Таб 7-10'!G26:G27)","v":0}]
[null,null,null,null,null,null,null,null,null,null,null,"повинна дорівнювати числу у рядку 1 -",null,null,null,{"$f":"'Таб 7-10'!G25","v":0}]
[null,null,null,null,null,null,null,null,null,null,null,"В Таблиці 8 в графі 4 сума чисел у рядках 2-3 -",null,null,null,{"$f":"SUM('Таб 7-10'!H26:H27)","v":0}]
[null,null,null,null,null,null,null,null,null,null,null,"повинна дорівнювати числу у рядку 1 -",null,null,null,{"$f":"'Таб 7-10'!H25","v":0}]
[null,null,null,null,null,null,null,null,null,null,null,"В Додатку 1 в рядку 1 число у графі 1 -",null,null,null,{"$f":"Додаток!F6","v":133}]
[null,null,null,null,null,null,null,null,null,null,null,"повинна дорівнювати сумі чисел в Таблиці 9 рядку 1 графах 2,4 -",null,null,null,{"$f":"'Таб 7-10'!P5+'Таб 7-10'!R5","v":133}]
[null,null,null,null,null,null,null,null,null,null,null,"В Додатку 1 в рядку 1 сума чисел у графах 3-4 -",null,null,null,{"$f":"SUM(Додаток!H6:I6)","v":130}]
[null,null,null,null,null,null,null,null,null,null,null,"повинна дорівнювати сумі чисел в Таблиці 9 рядку 2 графах 2,4 -",null,null,null,{"$f":"'Таб 7-10'!P6+'Таб 7-10'!R6","v":130}]
[null,null,null,null,null,null,null,null,null,null,null,"В Додатку 1 в рядку 7 число у графі 1 -",null,null,null,{"$f":"Додаток!F12","v":0}]
[null,null,null,null,null,null,null,null,null,null,null,"повинна дорівнювати числу в Таблиці 9 рядку 3 графи 2 -",null,null,null,{"$f":"'Таб 7-10'!P7","v":0}]
[null,null,null,null,null,null,null,null,null,null,null,"В Додатку 1 в рядку 8 число у графі 1 -",null,null,null,{"$f":"Додаток!F13","v":4661}]
[null,null,null,null,null,null,null,null,null,null,null,"повинна дорівнювати різниці чисел в Таблиці 9 рядку 1 графах 1,2,4,5 -",null,null,null,{"$f":"'Таб 7-10'!O5-'Таб 7-10'!P5-'Таб 7-10'!R5-'Таб 7-10'!S5","v":4661}]
[null,null,null,null,null,null,null,null,null,null,null,"В Додатку 1 в рядку 8 сума чисел у графах 3-4 -",null,null,null,{"$f":"SUM(Додаток!H13:I13)","v":4646}]
[null,null,null,null,null,null,null,null,null,null,null,"повинна дорівнювати різниці чисел в Таблиці 9 рядку 2 графах 1,2,4,5 -",null,null,null,{"$f":"'Таб 7-10'!O6-'Таб 7-10'!P6-'Таб 7-10'!R6-'Таб 7-10'!S6","v":4646}]
[null,null,null,null,null,null,null,null,null,null,null,"В Додатку 1 в рядку 10 число у графі 1 -",null,null,null,{"$f":"Додаток!F15","v":0}]
[null,null,null,null,null,null,null,null,null,null,null,"повинна дорівнювати різниці чисел в Таблиці 9 рядку 3 графах 1,2,4,5 -",null,null,null,{"$f":"'Таб 7-10'!O7-'Таб 7-10'!P7-'Таб 7-10'!R7-'Таб 7-10'!S7","v":0}]
[null,null,null,null,null,null,null,null,null,null,"Таблиця 8","В Таблиці 8 в графі 1 число у рядку 2 -",null,null,null,{"$f":"'Таб 7-10'!E26","v":2}]
[null,null,null,null,null,null,null,null,null,null,null,"не повинно перевищувати число в рядку 1 -",null,null,null,{"$f":"'Таб 7-10'!E25","v":3}]
[null,null,null,null,null,null,null,null,null,null,null,"В Таблиці 8 в графі 2 число у рядку 2 -",null,null,null,{"$f":"'Таб 7-10'!F26","v":0}]
[null,null,null,null,null,null,null,null,null,null,null,"не повинно перевищувати число в рядку 1 -",null,null,null,{"$f":"'Таб 7-10'!F25","v":0}]
[null,null,null,null,null,null,null,null,null,null,null,"В Таблиці 8 в графі 3 число у рядку 2 -",null,null,null,{"$f":"'Таб 7-10'!G26","v":0}]
[null,null,null,null,null,null,null,null,null,null,null,"не повинно перевищувати число в рядку 1 -",null,null,null,{"$f":"'Таб 7-10'!G25","v":0}]
[null,null,null,null,null,null,null,null,null,null,null,"В Таблиці 8 в графі 4 число у рядку 2 -",null,null,null,{"$f":"'Таб 7-10'!H26","v":0}]
[null,null,null,null,null,null,null,null,null,null,null,"не повинно перевищувати число в рядку 1 -",null,null,null,{"$f":"'Таб 7-10'!H25","v":0}]
[null,null,null,null,null,null,null,null,null,null,null,"В Таблиці 8 в графі 1 сума чисел у рядках 4,5,7-11 -",null,null,null,{"$f":"'Таб 7-10'!E28+'Таб 7-10'!E29+'Таб 7-10'!E31+'Таб 7-10'!E32+'Таб 7-10'!E33+'Таб 7-10'!E34+'Таб 7-10'!E35","v":1}]
[null,null,null,null,null,null,null,null,null,null,null,"не повинно перевищувати число в рядку 1 -",null,null,null,{"$f":"'Таб 7-10'!E25","v":3}]
[null,null,null,null,null,null,null,null,null,null,null,"В Таблиці 8 в графі 2 сума чисел у рядках 4,5,7-11 -",null,null,null,{"$f":"'Таб 7-10'!F28+'Таб 7-10'!F29+'Таб 7-10'!F31+'Таб 7-10'!F32+'Таб 7-10'!F33+'Таб 7-10'!F34+'Таб 7-10'!F35","v":0}]
[null,null,null,null,null,null,null,null,null,null,null,"не повинно перевищувати число в рядку 1 -",null,null,null,{"$f":"'Таб 7-10'!F25","v":0}]
[null,null,null,null,null,null,null,null,null,null,null,"В Таблиці 8 в графі 3 сума чисел у рядках 4,5,7-11 -",null,null,null,{"$f":"'Таб 7-10'!G28+'Таб 7-10'!G29+'Таб 7-10'!G31+'Таб 7-10'!G32+'Таб 7-10'!G33+'Таб 7-10'!G34+'Таб 7-10'!G35","v":0}]
[null,null,null,null,null,null,null,null,null,null,null,"не повинно перевищувати число в рядку 1 -",null,null,null,{"$f":"'Таб 7-10'!G25","v":0}]
[null,null,null,null,null,null,null,null,null,null,null,"В Таблиці 8 в графі 4 сума чисел у рядках 4,5,7-11 -",null,null,null,{"$f":"'Таб 7-10'!H28+'Таб 7-10'!H29+'Таб 7-10'!H31+'Таб 7-10'!H32+'Таб 7-10'!H33+'Таб 7-10'!H34+'Таб 7-10'!H35","v":0}]
[null,null,null,null,null,null,null,null,null,null,null,"не повинно перевищувати число в рядку 1 -",null,null,null,{"$f":"'Таб 7-10'!H25","v":0}]
[null,null,null,null,null,null,null,null,null,null,null,"В Таблиці 8 в графі 1 число у рядку 6 -",null,null,null,{"$f":"'Таб 7-10'!E30","v":0}]
[null,null,null,null,null,null,null,null,null,null,null,"не повинно перевищувати число у рядку 5 -",null,null,null,{"$f":"'Таб 7-10'!E29","v":0}]
[null,null,null,null,null,null,null,null,null,null,null,"В Таблиці 8 в графі 2 число у рядку 6 -",null,null,null,{"$f":"'Таб 7-10'!F30","v":0}]
[null,null,null,null,null,null,null,null,null,null,null,"не повинно перевищувати число у рядку 5 -",null,null,null,{"$f":"'Таб 7-10'!F29","v":0}]
[null,null,null,null,null,null,null,null,null,null,null,"В Таблиці 8 в графі 3 число у рядку 6 -",null,null,null,{"$f":"'Таб 7-10'!G30","v":0}]
[null,null,null,null,null,null,null,null,null,null,null,"не повинно перевищувати число у рядку 5 -",null,null,null,{"$f":"'Таб 7-10'!G29","v":0}]
[null,null,null,null,null,null,null,null,null,null,null,"В Таблиці 8 в графі 4 число у рядку 6 -",null,null,null,{"$f":"'Таб 7-10'!H30","v":0}]
[null,null,null,null,null,null,null,null,null,null,null,"не повинно перевищувати число у рядку 5 -",null,null,null,{"$f":"'Таб 7-10'!H29","v":0}]
[null,null,null,null,null,null,null,null,null,null,"Таблиця 9","В Таблиці 9 в графі 1 число у рядку 2 -",null,null,null,{"$f":"'Таб 7-10'!O6","v":4880}]
[null,null,null,null,null,null,null,null,null,null,null,"не повинно перевищувати число у рядку 1 -",null,null,null,{"$f":"'Таб 7-10'!O5","v":4898}]
[null,null,null,null,null,null,null,null,null,null,null,"В Таблиці 9 в графі 2 число у рядку 2 -",null,null,null,{"$f":"'Таб 7-10'!P6","v":130}]
[null,null,null,null,null,null,null,null,null,null,null,"не повинно перевищувати число у рядку 1 -",null,null,null,{"$f":"'Таб 7-10'!P5","v":133}]
[null,null,null,null,null,null,null,null,null,null,null,"В Таблиці 9 в графі 3 число у рядку 2 -",null,null,null,{"$f":"'Таб 7-10'!Q6","v":318}]
[null,null,null,null,null,null,null,null,null,null,null,"не повинно перевищувати число у рядку 1 -",null,null,null,{"$f":"'Таб 7-10'!Q5","v":318}]
[null,null,null,null,null,null,null,null,null,null,null,"В Таблиці 9 в графі 4 число у рядку 2 -",null,null,null,{"$f":"'Таб 7-10'!R6","v":0}]
[null,null,null,null,null,null,null,null,null,null,null,"не повинно перевищувати число у рядку 1 -",null,null,null,{"$f":"'Таб 7-10'!R5","v":0}]
[null,null,null,null,null,null,null,null,null,null,null,"В Таблиці 9 в графі 5 число у рядку 2 -",null,null,null,{"$f":"'Таб 7-10'!S6","v":104}]
[null,null,null,null,null,null,null,null,null,null,null,"не повинно перевищувати число у рядку 1 -",null,null,null,{"$f":"'Таб 7-10'!S5","v":104}]
[null,null,null,null,null,null,null,null,null,null,null,"В Таблиці 9 в графі 1 число у рядку 3 -",null,null,null,{"$f":"'Таб 7-10'!O7","v":0}]
[null,null,null,null,null,null,null,null,null,null,null,"не повинно перевищувати число у рядку 1 -",null,null,null,{"$f":"'Таб 7-10'!O5","v":4898}]
[null,null,null,null,null,null,null,null,null,null,null,"В Таблиці 9 в графі 2 число у рядку 3 -",null,null,null,{"$f":"'Таб 7-10'!P7","v":0}]
[null,null,null,null,null,null,null,null,null,null,null,"не повинно перевищувати число у рядку 1 -",null,null,null,{"$f":"'Таб 7-10'!P5","v":133}]
[null,null,null,null,null,null,null,null,null,null,null,"В Таблиці 9 в графі 3 число у рядку 3 -",null,null,null,{"$f":"'Таб 7-10'!Q7","v":0}]
[null,null,null,null,null,null,null,null,null,null,null,"не повинно перевищувати число у рядку 1 -",null,null,null,{"$f":"'Таб 7-10'!Q5","v":318}]
[null,null,null,null,null,null,null,null,null,null,null,"В Таблиці 9 в графі 4 число у рядку 3 -",null,null,null,{"$f":"'Таб 7-10'!R7","v":0}]
[null,null,null,null,null,null,null,null,null,null,null,"не повинно перевищувати число у рядку 1 -",null,null,null,{"$f":"'Таб 7-10'!R5","v":0}]
[null,null,null,null,null,null,null,null,null,null,null,"В Таблиці 9 в графі 5 число у рядку 3 -",null,null,null,{"$f":"'Таб 7-10'!S7","v":0}]
[null,null,null,null,null,null,null,null,null,null,null,"не повинно перевищувати число у рядку 1 -",null,null,null,{"$f":"'Таб 7-10'!S5","v":104}]
[null,null,null,null,null,null,null,null,null,null,null,"В Таблиці 9 в графі 4 число у рядку 1 -",null,null,null,{"$f":"'Таб 7-10'!R5","v":0}]
[null,null,null,null,null,null,null,null,null,null,null,"не повинно перевищувати число у графі 3 рядку 1 -",null,null,null,{"$f":"'Таб 7-10'!Q5","v":318}]
[null,null,null,null,null,null,null,null,null,null,null,"В Таблиці 9 в графі 4 число у рядку 2 -",null,null,null,{"$f":"'Таб 7-10'!R6","v":0}]
[null,null,null,null,null,null,null,null,null,null,null,"не повинно перевищувати число у графі 3 рядку 2 -",null,null,null,{"$f":"'Таб 7-10'!Q6","v":318}]
[null,null,null,null,null,null,null,null,null,null,null,"В Таблиці 9 в графі 4 число у рядку 3 -",null,null,null,{"$f":"'Таб 7-10'!R7","v":0}]
[null,null,null,null,null,null,null,null,null,null,null,"не повинно перевищувати число у графі 3 рядку 3 -",null,null,null,{"$f":"'Таб 7-10'!Q7","v":0}]
[null,null,null,null,null,null,null,null,null,null,null,"В Таблиці 9 в рядку 1 сума чисел у графах 2,4-",null,null,null,{"$f":"'Таб 7-10'!P5+'Таб 7-10'!R5","v":133}]
[null,null,null,null,null,null,null,null,null,null,null,"не повинно перевищувати число у графі 1 -",null,null,null,{"$f":"'Таб 7-10'!O5","v":4898}]
[null,null,null,null,null,null,null,null,null,null,null,"В Таблиці 9 в рядку 2 сума чисел у графах 2,4-",null,null,null,{"$f":"'Таб 7-10'!P6+'Таб 7-10'!R6","v":130}]
[null,null,null,null,null,null,null,null,null,null,null,"не повинно перевищувати число у графі 1 -",null,null,null,{"$f":"'Таб 7-10'!O6","v":4880}]
[null,null,null,null,null,null,null,null,null,null,null,"В Таблиці 9 в рядку 3 сума чисел у графах 2,4-",null,null,null,{"$f":"'Таб 7-10'!P7+'Таб 7-10'!R7","v":0}]
[null,null,null,null,null,null,null,null,null,null,null,"не повинно перевищувати число у графі 1 -",null,null,null,{"$f":"'Таб 7-10'!O7","v":0}]
[null,null,null,null,null,null,null,null,null,null,"Таблиця 10","В Таблиці 10 сума чисел у рядках 2,5,7,8 -",null,null,null,{"$f":"'Таб 7-10'!S14+'Таб 7-10'!S17+'Таб 7-10'!S19+'Таб 7-10'!S20","v":0}]
[null,null,null,null,null,null,null,null,null,null,null,"не повинна перевищувати число у рядку 1 -",null,null,null,{"$f":"'Таб 7-10'!S13","v":0}]
[null,null,null,null,null,null,null,null,null,null,null,"В Таблиці 10 сума чисел у рядках 3-4 -",null,null,null,{"$f":"'Таб 7-10'!S15+'Таб 7-10'!S16","v":0}]
[null,null,null,null,null,null,null,null,null,null,null,"не повинна перевищувати число у рядку 2 -",null,null,null,{"$f":"'Таб 7-10'!S14","v":0}]
[null,null,null,null,null,null,null,null,null,null,null,"В Таблиці 10 число у рядку 6 -",null,null,null,{"$f":"'Таб 7-10'!S18","v":0}]
[null,null,null,null,null,null,null,null,null,null,null,"не повинна перевищувати число у рядку 5 -",null,null,null,{"$f":"'Таб 7-10'!S17","v":0}]
[null,null,null,null,null,null,null,null,null,null,"Додаток 1","В Додатку 1 в рядку 1 сума чисел у графах 2-4-",null,null,null,{"$f":"SUM(Додаток!G6:I6)","v":133}]
[null,null,null,null,null,null,null,null,null,null,null,"не повинно перевищувати число у графі 1 -",null,null,null,{"$f":"Додаток!F6","v":133}]
[null,null,null,null,null,null,null,null,null,null,null,"В Додатку 1 в рядку 2 сума чисел у графах 2-4-",null,null,null,{"$f":"SUM(Додаток!G7:I7)","v":0}]
[null,null,null,null,null,null,null,null,null,null,null,"не повинно перевищувати число у графі 1 -",null,null,null,{"$f":"Додаток!F7","v":0}]
[null,null,null,null,null,null,null,null,null,null,null,"В Додатку 1 в рядку 3 сума чисел у графах 3-4-",null,null,null,{"$f":"SUM(Додаток!H8:I8)","v":130}]
[null,null,null,null,null,null,null,null,null,null,null,"не повинно перевищувати число у графі 1 -",null,null,null,{"$f":"Додаток!F8","v":130}]
[null,null,null,null,null,null,null,null,null,null,null,"В Додатку 1 в рядку 4 сума чисел у графах 2-4-",null,null,null,{"$f":"SUM(Додаток!G9:I9)","v":3}]
[null,null,null,null,null,null,null,null,null,null,null,"не повинно перевищувати число у графі 1 -",null,null,null,{"$f":"Додаток!F9","v":3}]
[null,null,null,null,null,null,null,null,null,null,null,"В Додатку 1 в рядку 5 сума чисел у графах 2-4-",null,null,null,{"$f":"SUM(Додаток!G10:I10)","v":0}]
[null,null,null,null,null,null,null,null,null,null,null,"не повинно перевищувати число у графі 1 -",null,null,null,{"$f":"Додаток!F10","v":0}]
[null,null,null,null,null,null,null,null,null,null,null,"В Додатку 1 в рядку 6 сума чисел у графах 2-4-",null,null,null,{"$f":"SUM(Додаток!G11:I11)","v":0}]
[null,null,null,null,null,null,null,null,null,null,null,"не повинно перевищувати число у графі 1 -",null,null,null,{"$f":"Додаток!F11","v":0}]
[null,null,null,null,null,null,null,null,null,null,null,"В Додатку 1 в рядку 7 сума чисел у графах 2-4-",null,null,null,{"$f":"SUM(Додаток!G12:I12)","v":0}]
[null,null,null,null,null,null,null,null,null,null,null,"не повинно перевищувати число у графі 1 -",null,null,null,{"$f":"Додаток!F12","v":0}]
[null,null,null,null,null,null,null,null,null,null,null,"В Додатку 1 в рядку 8 сума чисел у графах 2-4-",null,null,null,{"$f":"SUM(Додаток!G13:I13)","v":4646}]
[null,null,null,null,null,null,null,null,null,null,null,"не повинно перевищувати число у графі 1 -",null,null,null,{"$f":"Додаток!F13","v":4661}]
[null,null,null,null,null,null,null,null,null,null,null,"В Додатку 1 в рядку 9 сума чисел у графах 2-4-",null,null,null,{"$f":"SUM(Додаток!G14:I14)","v":0}]
[null,null,null,null,null,null,null,null,null,null,null,"не повинно перевищувати число у графі 1 -",null,null,null,{"$f":"Додаток!F14","v":0}]
[null,null,null,null,null,null,null,null,null,null,null,"В Додатку 1 в рядку 10 сума чисел у графах 2-4-",null,null,null,{"$f":"SUM(Додаток!G15:I15)","v":0}]
[null,null,null,null,null,null,null,null,null,null,null,"не повинно перевищувати число у графі 1 -",null,null,null,{"$f":"Додаток!F15","v":0}]
[null,null,null,null,null,null,null,null,null,null,null,"В Додатку 1 в рядку 11 сума чисел у графах 2-4-",null,null,null,{"$f":"SUM(Додаток!G16:I16)","v":0}]
[null,null,null,null,null,null,null,null,null,null,null,"не повинно перевищувати число у графі 1 -",null,null,null,{"$f":"Додаток!F16","v":0}]
[null,null,null,null,null,null,null,null,null,null,null,"В Додатку 1 в рядку 12 сума чисел у графах 2-4-",null,null,null,{"$f":"SUM(Додаток!G17:I17)","v":0}]
[null,null,null,null,null,null,null,null,null,null,null,"не повинно перевищувати число у графі 1 -",null,null,null,{"$f":"Додаток!F17","v":0}]
[null,null,null,null,null,null,null,null,null,null,null,"В Додатку 1 в рядку 13 сума чисел у графах 2-4-",null,null,null,{"$f":"SUM(Додаток!G18:I18)","v":0}]
[null,null,null,null,null,null,null,null,null,null,null,"не повинно перевищувати число у графі 1 -",null,null,null,{"$f":"Додаток!F18","v":0}]
[null,null,null,null,null,null,null,null,null,null,null,"В Додатку 1 в графі 1 число у рядку 2 -",null,null,null,{"$f":"Додаток!F7","v":0}]
[null,null,null,null,null,null,null,null,null,null,null,"не повинно перевищувати число у рядку 1 -",null,null,null,{"$f":"Додаток!F6","v":133}]
[null,null,null,null,null,null,null,null,null,null,null,"В Додатку 1 в графі 2 число у рядку 2 -",null,null,null,{"$f":"Додаток!G7","v":0}]
[null,null,null,null,null,null,null,null,null,null,null,"не повинно перевищувати число у рядку 1 -",null,null,null,{"$f":"Додаток!G6","v":3}]
[null,null,null,null,null,null,null,null,null,null,null,"В Додатку 1 в графі 3 число у рядку 2 -",null,null,null,{"$f":"Додаток!H7","v":0}]
[null,null,null,null,null,null,null,null,null,null,null,"не повинно перевищувати число у рядку 1 -",null,null,null,{"$f":"Додаток!H6","v":130}]
[null,null,null,null,null,null,null,null,null,null,null,"В Додатку 1 в графі 4 число у рядку 2 -",null,null,null,{"$f":"Додаток!I7","v":0}]
[null,null,null,null,null,null,null,null,null,null,null,"не повинно перевищувати число у рядку 1 -",null,null,null,{"$f":"Додаток!I6","v":0}]
[null,null,null,null,null,null,null,null,null,null,null,"В Додатку 1 в графі 1 число у рядку 3 -",null,null,null,{"$f":"Додаток!F8","v":130}]
[null,null,null,null,null,null,null,null,null,null,null,"не повинно перевищувати число у рядку 1 -",null,null,null,{"$f":"Додаток!F6","v":133}]
[null,null,null,null,null,null,null,null,null,null,null,"В Додатку 1 в графі 3 число у рядку 3 -",null,null,null,{"$f":"Додаток!H8","v":130}]
[null,null,null,null,null,null,null,null,null,null,null,"не повинно перевищувати число у рядку 1 -",null,null,null,{"$f":"Додаток!H6","v":130}]
[null,null,null,null,null,null,null,null,null,null,null,"В Додатку 1 в графі 4 число у рядку 3 -",null,null,null,{"$f":"Додаток!I8","v":0}]
[null,null,null,null,null,null,null,null,null,null,null,"не повинно перевищувати число у рядку 1 -",null,null,null,{"$f":"Додаток!I6","v":0}]
[null,null,null,null,null,null,null,null,null,null,null,"В Додатку 1 в графі 1 сума чисел у рядках 2-3 -",null,null,null,{"$f":"Додаток!F7+Додаток!F8","v":130}]
[null,null,null,null,null,null,null,null,null,null,null,"не повинно перевищувати число у рядку 1 -",null,null,null,{"$f":"Додаток!F6","v":133}]
[null,null,null,null,null,null,null,null,null,null,null,"В Додатку 1 в графі 3 сума чисел у рядках 2-3 -",null,null,null,{"$f":"Додаток!H7+Додаток!H8","v":130}]
[null,null,null,null,null,null,null,null,null,null,null,"не повинно перевищувати число у рядку 1 -",null,null,null,{"$f":"Додаток!H6","v":130}]
[null,null,null,null,null,null,null,null,null,null,null,"В Додатку 1 в графі 4 сума чисел у рядках 2-3 -",null,null,null,{"$f":"Додаток!I7+Додаток!I8","v":0}]
[null,null,null,null,null,null,null,null,null,null,null,"не повинно перевищувати число у рядку 1 -",null,null,null,{"$f":"Додаток!I6","v":0}]
[null,null,null,null,null,null,null,null,null,null,null,"В Додатку 1 в графі 1 сума чисел у рядках 4,5,7 -",null,null,null,{"$f":"Додаток!F9+Додаток!F10+Додаток!F12","v":3}]
[null,null,null,null,null,null,null,null,null,null,null,"не повинно перевищувати число у рядку 1 -",null,null,null,{"$f":"Додаток!F6","v":133}]
[null,null,null,null,null,null,null,null,null,null,null,"В Додатку 1 в графі 2 сума чисел у рядках 4,5,7 -",null,null,null,{"$f":"Додаток!G9+Додаток!G10+Додаток!G12","v":3}]
[null,null,null,null,null,null,null,null,null,null,null,"не повинно перевищувати число у рядку 1 -",null,null,null,{"$f":"Додаток!G6","v":3}]
[null,null,null,null,null,null,null,null,null,null,null,"В Додатку 1 в графі 3 сума чисел у рядках 4,5,7 -",null,null,null,{"$f":"Додаток!H9+Додаток!H10+Додаток!H12","v":0}]
[null,null,null,null,null,null,null,null,null,null,null,"не повинно перевищувати число у рядку 1 -",null,null,null,{"$f":"Додаток!H6","v":130}]
[null,null,null,null,null,null,null,null,null,null,null,"В Додатку 1 в графі 4 сума чисел у рядках 4,5,7 -",null,null,null,{"$f":"Додаток!I9+Додаток!I10+Додаток!I12","v":0}]
[null,null,null,null,null,null,null,null,null,null,null,"не повинно перевищувати число у рядку 1 -",null,null,null,{"$f":"Додаток!I6","v":0}]
[null,null,null,null,null,null,null,null,null,null,null,"В Додатку 1 в графі 1 число у рядку 10 -",null,null,null,{"$f":"Додаток!F15","v":0}]
[null,null,null,null,null,null,null,null,null,null,null,"не повинно перевищувати число у рядку 8 -",null,null,null,{"$f":"Додаток!F13","v":4661}]
[null,null,null,null,null,null,null,null,null,null,null,"В Додатку 1 в графі 2 число у рядку 10 -",null,null,null,{"$f":"Додаток!G15","v":0}]
[null,null,null,null,null,null,null,null,null,null,null,"не повинно перевищувати число у рядку 8 -",null,null,null,{"$f":"Додаток!G13","v":0}]
[null,null,null,null,null,null,null,null,null,null,null,"В Додатку 1 в графі 3 число у рядку 10 -",null,null,null,{"$f":"Додаток!H15","v":0}]
[null,null,null,null,null,null,null,null,null,null,null,"не повинно перевищувати число у рядку 8 -",null,null,null,{"$f":"Додаток!H13","v":4646}]
[null,null,null,null,null,null,null,null,null,null,null,"В Додатку 1 в графі 4 число у рядку 10 -",null,null,null,{"$f":"Додаток!I15","v":0}]
[null,null,null,null,null,null,null,null,null,null,null,"не повинно перевищувати число у рядку 8 -",null,null,null,{"$f":"Додаток!I13","v":0}]
[null,null,null,null,null,null,null,null,null,null,null,"В Додатку 1 в графі 1 число у рядку 11 -",null,null,null,{"$f":"Додаток!F16","v":0}]
[null,null,null,null,null,null,null,null,null,null,null,"не повинно перевищувати число у рядку 8 -",null,null,null,{"$f":"Додаток!F13","v":4661}]
[null,null,null,null,null,null,null,null,null,null,null,"В Додатку 1 в графі 2 число у рядку 11 -",null,null,null,{"$f":"Додаток!G16","v":0}]
[null,null,null,null,null,null,null,null,null,null,null,"не повинно перевищувати число у рядку 8 -",null,null,null,{"$f":"Додаток!G13","v":0}]
[null,null,null,null,null,null,null,null,null,null,null,"В Додатку 1 в графі 3 число у рядку 11 -",null,null,null,{"$f":"Додаток!H16","v":0}]
[null,null,null,null,null,null,null,null,null,null,null,"не повинно перевищувати число у рядку 8 -",null,null,null,{"$f":"Додаток!H13","v":4646}]
[null,null,null,null,null,null,null,null,null,null,null,"В Додатку 1 в графі 4 число у рядку 11 -",null,null,null,{"$f":"Додаток!I16","v":0}]
[null,null,null,null,null,null,null,null,null,null,null,"не повинно перевищувати число у рядку 8 -",null,null,null,{"$f":"Додаток!I13","v":0}]
[null,null,null,null,null,null,null,null,null,null,null,"В Додатку 1 в графі 1 число у рядку 13 -",null,null,null,{"$f":"Додаток!F18","v":0}]
[null,null,null,null,null,null,null,null,null,null,null,"не повинно перевищувати число у рядку 11 -",null,null,null,{"$f":"Додаток!F16","v":0}]
[null,null,null,null,null,null,null,null,null,null,null,"В Додатку 1 в графі 2 число у рядку 13 -",null,null,null,{"$f":"Додаток!G18","v":0}]
[null,null,null,null,null,null,null,null,null,null,null,"не повинно перевищувати число у рядку 11 -",null,null,null,{"$f":"Додаток!G16","v":0}]
[null,null,null,null,null,null,null,null,null,null,null,"В Додатку 1 в графі 3 число у рядку 13 -",null,null,null,{"$f":"Додаток!H18","v":0}]
[null,null,null,null,null,null,null,null,null,null,null,"не повинно перевищувати число у рядку 11 -",null,null,null,{"$f":"Додаток!H16","v":0}]
[null,null,null,null,null,null,null,null,null,null,null,"В Додатку 1 в графі 4 число у рядку 13 -",null,null,null,{"$f":"Додаток!I18","v":0}]
[null,null,null,null,null,null,null,null,null,null,null,"не повинно перевищувати число у рядку 11 -",null,null,null,{"$f":"Додаток!I16","v":0}]

{"sheet":"Довідки","index":9,"n_rows":113,"n_cols":8,"rows_kept":113,"cut":false,"hidden":false,"merged":[[31,1,31,3],[28,0,28,3],[27,0,27,3],[43,0,43,3],[44,1,44,3],[47,1,47,3],[19,0,19,3],[40,0,40,3],[16,1,16,3],[9,0,18,0],[15,1,15,3],[11,1,11,3],[18,1,18,3],[31,0,32,0],[32,1,32,3],[36,0,37,0],[37,1,37,3],[35,0,35,3],[22,1,22,3],[36,1,36,3],[26,0,26,3],[17,2,17,3],[20,0,25,0],[20,1,20,3],[71,2,72,2],[67,0,68,2],[65,2,66,2],[61,1,66,1],[56,0,56,3],[46,0,46,3],[52,0,52,3],[41,0,42,0],[41,1,41,3],[42,1,42,3],[49,1,49,3],[48,1,48,3],[55,0,55,3],[50,1,50,3],[47,0,50,0],[45,0,45,3],[51,0,51,3],[34,1,34,3],[38,0,38,3],[39,1,39,3],[0,0,0,7],[1,0,1,7],[2,0,2,7],[3,0,3,7],[5,0,5,3],[6,0,6,3],[8,0,8,3],[9,1,9,3],[13,1,14,1],[13,2,13,3],[14,2,14,3],[12,1,12,3],[10,1,10,3],[7,0,7,3],[25,1,25,3],[30,0,30,3],[29,0,29,3],[24,1,24,3],[21,1,21,3],[23,1,23,3],[33,0,33,3],[112,0,112,3],[109,0,109,3],[110,0,110,3],[111,0,111,3],[108,0,108,3],[97,0,98,2],[99,0,106,0],[101,1,106,1],[105,2,106,2],[107,0,107,3],[101,2,102,2],[103,2,104,2],[99,1,100,2],[83,2,84,2],[53,0,53,3],[93,2,94,2],[63,2,64,2],[77,0,78,2],[59,0,66,0],[91,2,92,2],[89,2,90,2],[87,2,88,2],[85,2,86,2],[79,1,80,2],[81,1,96,1],[95,2,96,2],[79,0,96,0],[75,2,76,2],[81,2,82,2],[54,0,54,3],[57,0,58,2],[73,2,74,2],[61,2,62,2],[59,1,60,2],[69,1,70,2],[69,0,76,0],[71,1,76,1]]}
["ДОВІДКА"]
["про слідчу роботу"]
[{"$f":"'Таблиця 1'!T1","v":"Прокуратура Чернігівської області"}]
["за 3 місяці 2015 року"]
[]
[null,null,null,null,"Рядок",2014,2015,"Дин. %"]
["а",null,null,null,"б",1,2,3]
["Знаходилось кримінальних проваджень",null,null,null,1,116,156,{"$f":"IF(F8=0,0,IF(G8=0,\"-100,0\",IF(G8*100/F8<200,ROUND(G8*100/F8-100,1),ROUND(G8/F8,1)&\" р\")))","v":34.5}]
["Закінчено кримінальних проваджень (з повторно закінченими)",null,null,null,2,73,69,{"$f":"IF(F9=0,0,IF(G9=0,\"-100,0\",IF(G9*100/F9<200,ROUND(G9*100/F9-100,1),ROUND(G9/F9,1)&\" р\")))","v":-5.5}]
["з них:","закінчено кримінальних проваджень у строки понад 2 місяці",null,null,3,null,1,{"$f":"IF(F10=0,0,IF(G10=0,\"-100,0\",IF(G10*100/F10<200,ROUND(G10*100/F10-100,1),ROUND(G10/F10,1)&\" р\")))","v":0}]
[null,"питома вага закінчених кримінальних проваджень у строки понад 2 місяці",null,null,4,{"$f":"IF($F$9=0,0,F10*100/$F$9)","v":0},{"$f":"IF($G$9=0,0,G10*100/$G$9)","v":1.4492753623188406}]
[null,"направлено до суду проваджень з обвинувальним актом",null,null,5,8,7,{"$f":"IF(F12=0,0,IF(G12=0,\"-100,0\",IF(G12*100/F12<200,ROUND(G12*100/F12-100,1),ROUND(G12/F12,1)&\" р\")))","v":-12.5}]
[null,"питома вага направлених до суду проваджень до числа закінчених",null,null,6,{"$f":"IF($F$9=0,0,F12*100/$F$9)","v":10.95890410958904},{"$f":"IF($G$9=0,0,G12*100/$G$9)","v":10.144927536231885}]
[null,"у т.ч.:","з угодою про примирення",null,7,1,null,{"$f":"IF(F14=0,0,IF(G14=0,\"-100,0\",IF(G14*100/F14<200,ROUND(G14*100/F14-100,1),ROUND(G14/F14,1)&\" р\")))","v":"-100,0"}]
[null,null,"з угодою про визнання винуватості",null,8,4,null,{"$f":"IF(F15=0,0,IF(G15=0,\"-100,0\",IF(G15*100/F15<200,ROUND(G15*100/F15-100,1),ROUND(G15/F15,1)&\" р\")))","v":"-100,0"}]
[null,"направлено до суду клопотань про звільнення підозрюваного від кримінальної відповідальності",null,null,9,1,null,{"$f":"IF(F16=0,0,IF(G16=0,\"-100,0\",IF(G16*100/F16<200,ROUND(G16*100/F16-100,1),ROUND(G16/F16,1)&\" р\")))","v":"-100,0"}]
[null,"закрито кримінальних проваджень із числа закінчених",null,null,10,63,62,{"$f":"IF(F17=0,0,IF(G17=0,\"-100,0\",IF(G17*100/F17<200,ROUND(G17*100/F17-100,1),ROUND(G17/F17,1)&\" р\")))","v":-1.6}]
[null,"з них:","закрито прокурором",null,11,1,null,{"$f":"IF(F18=0,0,IF(G18=0,\"-100,0\",IF(G18*100/F18<200,ROUND(G18*100/F18-100,1),ROUND(G18/F18,1)&\" р\")))","v":"-100,0"}]
[null,"питома вага",null,null,12,{"$f":"IF(F17=0,0,F18*100/F17)","v":1.5873015873015872},{"$f":"IF(G17=0,0,G18*100/G17)","v":0}]
["Закінчено кримінальних проваджень (без повторно закінчених)",null,null,null,13,62,58,{"$f":"IF(F20=0,0,IF(G20=0,\"-100,0\",IF(G20*100/F20<200,ROUND(G20*100/F20-100,1),ROUND(G20/F20,1)&\" р\")))","v":-6.5}]
["з них:","направлено до суду кримінальних проваджень з обвинувальним актом",null,null,14,8,6,{"$f":"IF(F21=0,0,IF(G21=0,\"-100,0\",IF(G21*100/F21<200,ROUND(G21*100/F21-100,1),ROUND(G21/F21,1)&\" р\")))","v":-25}]
[null,"питома вага до числа закінчених проваджень (без повторних)",null,null,15,{"$f":"IF($F$20=0,0,F21*100/$F$20)","v":12.903225806451612},{"$f":"IF($G$20=0,0,G21*100/$G$20)","v":10.344827586206897}]
[null,"закрито кримінальних проваджень (без повторних)",null,null,16,54,52,{"$f":"IF(F23=0,0,IF(G23=0,\"-100,0\",IF(G23*100/F23<200,ROUND(G23*100/F23-100,1),ROUND(G23/F23,1)&\" р\")))","v":-3.7}]
[null,"питома вага до числа закінчених проваджень (без повторних)",null,null,17,{"$f":"IF($F$20=0,0,F23*100/$F$20)","v":87.096774193548384},{"$f":"IF($G$20=0,0,G23*100/$G$20)","v":89.65517241379311}]
[null,"закрито кримінальних проваджень за  п.п. 1-3 ч. 1 ст.284 КПК",null,null,18,54,52,{"$f":"IF(F25=0,0,IF(G25=0,\"-100,0\",IF(G25*100/F25<200,ROUND(G25*100/F25-100,1),ROUND(G25/F25,1)&\" р\")))","v":-3.7}]
[null,"питома вага закритих проваджень до закінчених",null,null,19,{"$f":"IF($F$20=0,0,F25*100/$F$20)","v":87.096774193548384},{"$f":"IF($G$20=0,0,G25*100/$G$20)","v":89.65517241379311}]
["Затримано осіб у порядку, передбаченому ст.ст. 207, 208 КПК України ",null,null,null,20,4,1,{"$f":"IF(F27=0,0,IF(G27=0,\"-100,0\",IF(G27*100/F27<200,ROUND(G27*100/F27-100,1),ROUND(G27/F27,1)&\" р\")))","v":-75}]
["Усього звільнено осіб",null,null,null,21,4,1,{"$f":"IF(F28=0,0,IF(G28=0,\"-100,0\",IF(G28*100/F28<200,ROUND(G28*100/F28-100,1),ROUND(G28/F28,1)&\" р\")))","v":-75}]
["Питома вага звільнених осіб до числа затриманих",null,null,null,22,{"$f":"IF(F27=0,0,F28*100/F27)","v":100},{"$f":"IF(G27=0,0,G28*100/G27)","v":100}]
["Звільнено осіб за непідтвердженням підозри у вчиненні злочину",null,null,null,23,null,null,{"$f":"IF(F30=0,0,IF(G30=0,\"-100,0\",IF(G30*100/F30<200,ROUND(G30*100/F30-100,1),ROUND(G30/F30,1)&\" р\")))","v":0}]
["Кількість підозрюваних осіб, стосовно яких кримінальне провадження закрито прокурором на підставі п.п. 1-3 ч.1 ст. 284 КПК України",null,null,null,24,null,null,0]
["з них:","трималися під вартою",null,null,25,null,null,0]
[null,"перебували під домашнім арештом",null,null,26,null,null,0]
["Кількість обвинувачених та підозрюваних, стосовно яких провадження закрито за реабілітуючими підставами (за к/справами, розслідуваними до 20.11.2012)",null,null,null,27,null,null,{"$f":"IF(F34=0,0,IF(G34=0,\"-100,0\",IF(G34*100/F34<200,ROUND(G34*100/F34-100,1),ROUND(G34/F34,1)&\" р\")))","v":0}]
["з них:","трималися під вартою",null,null,28,null,null,{"$f":"IF(F35=0,0,IF(G35=0,\"-100,0\",IF(G35*100/F35<200,ROUND(G35*100/F35-100,1),ROUND(G35/F35,1)&\" р\")))","v":0}]
["Кількість виправданих осіб судами",null,null,null,29,1,1,0]
["з них:","трималися під вартою",null,null,30,1,null,"-100,0"]
[null,"перебували під домашнім арештом",null,null,31,null,null,0]
["Кількість виправданих і осіб, стосовно яких справи закриті судом за відсутністю події або складу злочину і за недоведеністю обвинувачення (за кримінальними справами, направленими до суду до 20.11.2012)",null,null,null,32,null,null,0]
["з них:","трималися під вартою",null,null,33,null,null,0]
["Кількість осіб, стосовно яких провадження закриті судом у зв’язку з відмовою прокурора від підтримання державного обвинувачення",null,null,null,34,null,null,0]
["з них:","трималися під вартою",null,null,35,null,null,{"$f":"IF(F42=0,0,IF(G42=0,\"-100,0\",IF(G42*100/F42<200,ROUND(G42*100/F42-100,1),ROUND(G42/F42,1)&\" р\")))","v":0}]
[null,"перебували під домашнім арештом",null,null,36,null,null,{"$f":"IF(F43=0,0,IF(G43=0,\"-100,0\",IF(G43*100/F43<200,ROUND(G43*100/F43-100,1),ROUND(G43/F43,1)&\" р\")))","v":0}]
["Кількість осіб, стосовно яких кримінальні справи закриті судом у зв’язку з відмовою прокурора від підтримання державного обвинувачення (за кримінальними справами, направленими до суду до 20.11.2012)",null,null,null,37,null,null,{"$f":"IF(F44=0,0,IF(G44=0,\"-100,0\",IF(G44*100/F44<200,ROUND(G44*100/F44-100,1),ROUND(G44/F44,1)&\" р\")))","v":0}]
["з них:","трималися під вартою",null,null,38,null,null,{"$f":"IF(F45=0,0,IF(G45=0,\"-100,0\",IF(G45*100/F45<200,ROUND(G45*100/F45-100,1),ROUND(G45/F45,1)&\" р\")))","v":0}]
["Усього надійшло кримінальних проваджень із судів",null,null,null,39,{"$f":"SUM(F48:F51)","v":0},{"$f":"SUM(G48:G51)","v":0},0]
["Питома вага",null,null,null,40,{"$f":"IF(F21=0,0,F46*100/F21)","v":0},{"$f":"IF(G21=0,0,G46*100/G21)","v":0}]
["з них:","з обвинувальним актом (п.3 ч. 3 ст. 314 КПК)",null,null,41,null,null,0]
[null,"з клопотаннями про застосування примусових заходів медичного характеру (п.3 ч. 3 ст. 314 КПК)",null,null,42,null,null,0]
[null,"з клопотаннями про звільнення особи від кримінальної відповідальності (п. 4 ст. 288 КПК)",null,null,43,null,null,0]
[null,"на підставі п.2 ч.2 ст. 407 КПК",null,null,44,null,null,0]
["Залишок незакінчених кримінальних проваджень ",null,null,null,45,23,67,{"$f":"IF(F52=0,0,IF(G52=0,\"-100,0\",IF(G52*100/F52<200,ROUND(G52*100/F52-100,1),ROUND(G52/F52,1)&\" р\")))","v":"2,9 р"}]
["Установлено збитків за закінченими кримінальними провадженнями (у тис. грн.)",null,null,null,46,null,3,{"$f":"IF(F53=0,0,IF(G53=0,\"-100,0\",IF(G53*100/F53<200,ROUND(G53*100/F53-100,1),ROUND(G53/F53,1)&\" р\")))","v":0}]
["Відшкодовано збитків за закінченими кримінальними провадженнями (у тис. грн.)",null,null,null,47,0,3,{"$f":"IF(F54=0,0,IF(G54=0,\"-100,0\",IF(G54*100/F54<200,ROUND(G54*100/F54-100,1),ROUND(G54/F54,1)&\" р\")))","v":0}]
["Питома вага відшкодування (%)",null,null,null,48,{"$f":"IF(F53=0,0,F54*100/F53)","v":0},{"$f":"IF(G53=0,0,G54*100/G53)","v":100}]
["Відшкодовано збитків заподіяних інтересам держави та територіальних громад\n(у тис. грн.)",null,null,null,49,0,0,{"$f":"IF(F56=0,0,IF(G56=0,\"-100,0\",IF(G56*100/F56<200,ROUND(G56*100/F56-100,1),ROUND(G56/F56,1)&\" р\")))","v":0}]
["Відшкодовано збитків про земельні правовідносини (у тис. грн.)",null,null,null,50,0,0,{"$f":"IF(F57=0,0,IF(G57=0,\"-100,0\",IF(G57*100/F57<200,ROUND(G57*100/F57-100,1),ROUND(G57/F57,1)&\" р\")))","v":0}]
["Крим. правопорушення, вчинені особами посади яких згідно зі ч.1 ст. 9 Закону України «Про державну службу» та посади яких відповідно до цього Закону віднесено до 1-2 категорії (крім працівників правоохоронних органів)",null,null,"направлено до суду",51,null,null,{"$f":"IF(F58=0,0,IF(G58=0,\"-100,0\",IF(G58*100/F58<200,ROUND(G58*100/F58-100,1),ROUND(G58/F58,1)&\" р\")))","v":0}]
[null,null,null,"закрито за  п.п. 1-3 ч. 1 ст.284 КПК",52,null,null,0]
["з них:","У сфері службової діяльності ",null,"направлено до суду",53,null,null,0]
[null,null,null,"закрито за  п.п. 1-3 ч. 1 ст.284 КПК",54,null,null,0]
[null,"у т.ч.:","зловживання владою або службовим становищем (ст. 364)","направлено до суду",55,null,null,{"$f":"IF(F62=0,0,IF(G62=0,\"-100,0\",IF(G62*100/F62<200,ROUND(G62*100/F62-100,1),ROUND(G62/F62,1)&\" р\")))","v":0}]
[null,null,null,"закрито за  п.п. 1-3 ч. 1 ст.284 КПК",56,null,null,0]
[null,null,"службова недбалість (ст. 367)","направлено до суду",57,null,null,0]
[null,null,null,"закрито за  п.п. 1-3 ч. 1 ст.284 КПК",58,null,null,0]
[null,null,"злочини щодо хабарництва (ст.ст. 368-370)","направлено до суду",59,null,null,0]
[null,null,null,"закрито за  п.п. 1-3 ч. 1 ст.284 КПК",60,null,null,0]
["Крим. правопорушення, вчинені особами посади яких згідно зі ст. 25 Закону України «Про державну службу» віднесено до 3 категорії посад (крім працівників правоох. органів та суддів)",null,null,"направлено до суду",61,null,null,{"$f":"IF(F68=0,0,IF(G68=0,\"-100,0\",IF(G68*100/F68<200,ROUND(G68*100/F68-100,1),ROUND(G68/F68,1)&\" р\")))","v":0}]
[null,null,null,"закрито за  п.п. 1-3 ч. 1 ст.284 КПК",62,1,null,"-100,0"]
["з них:","У сфері службової діяльності ",null,"направлено до суду",63,null,null,0]
[null,null,null,"закрито за  п.п. 1-3 ч. 1 ст.284 КПК",64,1,null,"-100,0"]
[null,"у т.ч.:","зловживання владою або службовим становищем (ст. 364)","направлено до суду",65,null,null,0]
[null,null,null,"закрито за  п.п. 1-3 ч. 1 ст.284 КПК",66,null,null,0]
[null,null,"службова недбалість (ст. 367)","направлено до суду",67,null,null,{"$f":"IF(F74=0,0,IF(G74=0,\"-100,0\",IF(G74*100/F74<200,ROUND(G74*100/F74-100,1),ROUND(G74/F74,1)&\" р\")))","v":0}]
[null,null,null,"закрито за  п.п. 1-3 ч. 1 ст.284 КПК",68,null,null,0]
[null,null,"злочини щодо хабарництва (ст.ст. 368-370)","направлено до суду",69,null,null,0]
[null,null,null,"закрито за  п.п. 1-3 ч. 1 ст.284 КПК",70,null,null,0]
["Кримінальні правопорушення, вчинені працівниками правоохоронних органів",null,null,"направлено до суду",71,5,4,-20]
[null,null,null,"закрито за  п.п. 1-3 ч. 1 ст.284 КПК",72,53,52,-1.9]
["з них:","У сфері службової діяльності ",null,"направлено до суду",73,4,3,-25]
[null,null,null,"закрито за  п.п. 1-3 ч. 1 ст.284 КПК",74,46,46,0]
[null,"у т.ч.:","органів внутрішніх справ","направлено до суду",75,4,2,-50]
[null,null,null,"закрито за  п.п. 1-3 ч. 1 ст.284 КПК",76,42,46,9.5]
[null,null,"у т.ч. Національної  гвардії","направлено до суду",77,null,null,{"$f":"IF(F84=0,0,IF(G84=0,\"-100,0\",IF(G84*100/F84<200,ROUND(G84*100/F84-100,1),ROUND(G84/F84,1)&\" р\")))","v":0}]
[null,null,null,"закрито за  п.п. 1-3 ч. 1 ст.284 КПК",78,null,null,0]
[null,null,"органів прокуратури","направлено до суду",79,null,null,0]
[null,null,null,"закрито за  п.п. 1-3 ч. 1 ст.284 КПК",80,null,1,0]
[null,null,"Служби безпеки України","направлено до суду",81,null,null,0]
[null,null,null,"закрито за  п.п. 1-3 ч. 1 ст.284 КПК",82,null,1,0]
[null,null,"Державної податкової служби","направлено до суду",83,1,null,"-100,0"]
[null,null,null,"закрито за  п.п. 1-3 ч. 1 ст.284 КПК",84,7,1,-85.7]
[null,null,"митної служби","направлено до суду",85,null,null,0]
[null,null,null,"закрито за  п.п. 1-3 ч. 1 ст.284 КПК",86,null,null,0]
[null,null,"працівниками пенітенціарної системи","направлено до суду",87,null,1,0]
[null,null,null,"закрито за  п.п. 1-3 ч. 1 ст.284 КПК",88,2,2,0]
[null,null,"прикордонниками","направлено до суду",89,null,null,{"$f":"IF(F96=0,0,IF(G96=0,\"-100,0\",IF(G96*100/F96<200,ROUND(G96*100/F96-100,1),ROUND(G96/F96,1)&\" р\")))","v":0}]
[null,null,null,"закрито за  п.п. 1-3 ч. 1 ст.284 КПК",90,1,null,{"$f":"IF(F97=0,0,IF(G97=0,\"-100,0\",IF(G97*100/F97<200,ROUND(G97*100/F97-100,1),ROUND(G97/F97,1)&\" р\")))","v":"-100,0"}]
["Кримінальні правопорушення, вчинені суддями",null,null,"направлено до суду",91,null,null,{"$f":"IF(F98=0,0,IF(G98=0,\"-100,0\",IF(G98*100/F98<200,ROUND(G98*100/F98-100,1),ROUND(G98/F98,1)&\" р\")))","v":0}]
[null,null,null,"закрито за  п.п. 1-3 ч. 1 ст.284 КПК",92,null,null,0]
["з них:","У сфері здійснення правосуддя",null,"направлено до суду",93,null,null,0]
[null,null,null,"закрито за  п.п. 1-3 ч. 1 ст.284 КПК",94,null,null,0]
[null,"у т.ч.:","постановлення завідомо неправосудного вироку, рішення або ухвали (ст.375)","направлено до суду",95,null,null,0]
[null,null,null,"закрито за  п.п. 1-3 ч. 1 ст.284 КПК",96,null,null,0]
[null,null,"злочини щодо хабарництва (ст.ст. 368-370)","направлено до суду",97,null,null,0]
[null,null,null,"закрито за  п.п. 1-3 ч. 1 ст.284 КПК",98,null,null,0]
[null,null,"інші крим. правопор., вчинені у сфері служб. діяльності щодо здійснення правосуддя","направлено до суду",99,null,null,0]
[null,null,null,"закрито за  п.п. 1-3 ч. 1 ст.284 КПК",100,null,null,0]
["Направлено до суду кримінальних проваджень про корупційні правопорушення",null,null,null,101,1,3,{"$f":"IF(F108=0,0,IF(G108=0,\"-100,0\",IF(G108*100/F108<200,ROUND(G108*100/F108-100,1),ROUND(G108/F108,1)&\" р\")))","v":"3 р"}]
["Питома вага до всіх направлених до суду з обвинувальним висновком",null,null,null,102,{"$f":"IF($F$21=0,0,F108*100/$F$21)","v":12.5},{"$f":"IF($G$21=0,0,G108*100/$G$21)","v":50}]
["Притягнуто до відповідальності осіб (про корупційні правопорушення)",null,null,null,103,1,4,{"$f":"IF(F110=0,0,IF(G110=0,\"-100,0\",IF(G110*100/F110<200,ROUND(G110*100/F110-100,1),ROUND(G110/F110,1)&\" р\")))","v":"4 р"}]
["Направлено до суду кримінальних проваджень про правопорушення, вчинені ОГ та ЗО",null,null,null,104,null,null,{"$f":"IF(F111=0,0,IF(G111=0,\"-100,0\",IF(G111*100/F111<200,ROUND(G111*100/F111-100,1),ROUND(G111/F111,1)&\" р\")))","v":0}]
["Направлено до суду кримінальних проваджень про правопорушення, вчинені у сфері земельних правовідносин",null,null,null,105,null,null,{"$f":"IF(F112=0,0,IF(G112=0,\"-100,0\",IF(G112*100/F112<200,ROUND(G112*100/F112-100,1),ROUND(G112/F112,1)&\" р\")))","v":0}]
["Направлено до суду кримінальних проваджень про правопорушення, вчинені у бюджетній системі",null,null,null,106,null,null,{"$f":"IF(F113=0,0,IF(G113=0,\"-100,0\",IF(G113*100/F113<200,ROUND(G113*100/F113-100,1),ROUND(G113/F113,1)&\" р\")))","v":0}]